Cogmind - Beta 16.1 @@@ ROGUE MODE // 2026.02.22 @ 18:00:19 Player: +Jones Result: Escaped! Performance ------------- Evolutions (9) 4500 Regions Visited (32) 6400 Robots Destroyed (394) 1970 Value Destroyed (17990) 17990 Prototype IDs (63) 1260 Alien Tech Used (0) 0 Bonus (13692) 13692 TOTAL SCORE: 45812 Bonus ------- High Alert Combat Kills 2943 Follower Combat Kills 516 Entered Garrisons 600 Entered DSFs 1000 Aligned with FarCom 300 Met Data Miner 300 Acquired ECA 300 Met Warlord at Base 500 MAIN.C Attacked Warlord 500 Warlord Defense Kills 226 Met Warlord at Research 2000 Destroyed MAIN.C Guards 500 Met Warlord at Command 2000 Win 3000 Friendly Fire -993 Cogmind --------- Core Integrity 317/1600 Matter 165/300 Energy 99/100 System Corruption 0% Temperature Cool (0) Movement Core (50) Location To Epsilon Eridani Parts ------- > --- POWER (3) -------- (None) > --- PROPULSION (6) --- (None) > --- UTILITY (12) ----- (None) > --- WEAPON (4) ------- (None) > --- INVENTORY (5) ---- Biometal Heavy Treads Layered Heavy Armor Plating Peak State ------------ > --- POWER ------------ Reinforced Quantum Reactor Reinforced Quantum Reactor Reinforced Quantum Reactor > --- PROPULSION ------- Biometal Heavy Treads Biometal Heavy Treads Advanced Heavy Siege Treads > --- UTILITY ---------- Advanced Heat Sink Huge Storage Unit Advanced Terrain Scanner Experimental Core Analyzer Advanced Kinecellerator Advanced Transmission Jammer Advanced Phase Shifter Layered Heavy Armor Plating Advanced Force Field Advanced Hacking Suite Advanced Component Analysis Suite > --- WEAPON ----------- Enhanced Nova Cannon Helical Railgun Helical Railgun Helical Railgun > --- INVENTORY -------- Vortex Chain Reactor Biometal Heavy Treads Biometal Heavy Treads Advanced Heat Sink Advanced Coolant Injector Matter Compressor Advanced Force Field Advanced Remote Shield Improved Dynamic Insulation System Improved System Restoration Module Improved System Restoration Module Long-range Tractor Beam Drone Bay Railgun Enhanced Hardcell Cannon Enhanced Hardcell Cannon Enhanced Hardcell Cannon Enhanced Hardcell Cannon Plasma Cutter RU-N14's Throwing Claymores v3 RU-N14's Throwing Claymores v3 Force Lance [Rating: 215] Favorites ----------- Power Reinforced Quantum Reactor Engine Heavy Ion Engine Power Core Fission Core Reactor Reinforced Quantum Reactor Propulsion Light Treads Treads Light Treads Wheel Wheel Utility High-capacity Storage Unit Device Advanced Terrain Scanner Storage High-capacity Storage Unit Processor Advanced Signal Interpreter Hackware Improved Hacking Suite Protection Hardened Medium Armor Plating Weapon Gauss Rifle Energy Gun Small Laser Energy Cannon Heavy Plasma Cannon Ballistic Gun Gauss Rifle Ballistic Cannon Heavy Assault Cannon Launcher Improved Grenade Launcher Special Weapon Mining Laser Impact Weapon Power Maul Slashing Weapon Katana Piercing Weapon Force Lance Build | -11 -10 -10 -9 -9 -9 -8 -8 -8 -8 -8 -7 -7 -7 -7 -6 -6 -6 -6 -6 -6 -5 -5 -5 -5 -5 -4 -4 -3 -3 -2 -1 -1 ------- Run | Yrd Mat Min Mat Min Exi Min Mat Gar Mat Gar Fac Gar Fac DSF Fac Was Fac Low Low Dat Pro Fac Upp Upp War Pro Fac Res DSF Res Acc Com Slots Evolved 18 | . . . 2 . . . 2 . . . 2 . . . 2 . . . . . . 2 . . . . 2 2 . 2 2 . Power 2 | . . . . . . . . . . . . . . . . . . . . . . 1 . . . . . . . 1 . . Propulsion 4 | . . . 1 . . . 1 . . . . . . . . . . . . . . 1 . . . . 1 . . . . . Utility 10 | . . . 1 . . . . . . . 1 . . . 2 . . . . . . . . . . . 1 2 . 1 2 . Weapon 2 | . . . . . . . 1 . . . 1 . . . . . . . . . . . . . . . . . . . . . Parts Attached 259 | 8 8 5 24 . . 2 24 9 3 10 2 13 . 8 15 3 2 3 . . 2 3 6 7 8 4 18 4 15 24 2 27 Power 22 | 1 1 . 2 . . . 3 . . 1 1 2 . . . 1 . . . . . 1 2 1 . 1 2 . 2 1 . . Engine 12 | 1 1 . 2 . . . 3 . . 1 1 1 . . . . . . . . . 1 1 . . . . . . . . . Core 2 | . . . . . . . . . . . . . . . . . . . . . . . 1 1 . . . . . . . . Reactor 8 | . . . . . . . . . . . . 1 . . . 1 . . . . . . . . . 1 2 . 2 1 . . Propulsion 59 | 2 2 1 8 . . 1 8 3 . 6 . 4 . 2 4 . . . . . . 1 . 1 . . 3 . 4 3 1 5 Treads 47 | 2 2 1 7 . . 1 8 3 . 4 . 4 . 1 2 . . . . . . . . . . . . . 3 3 1 5 Leg . | . . . . . . . . . . . . . . . . . . . . . . . . . . . . . . . . . Wheel 12 | . . . 1 . . . . . . 2 . . . 1 2 . . . . . . 1 . 1 . . 3 . 1 . . . Hover . | . . . . . . . . . . . . . . . . . . . . . . . . . . . . . . . . . Flight . | . . . . . . . . . . . . . . . . . . . . . . . . . . . . . . . . . Utility 91 | 2 3 . 4 . . 1 5 2 3 1 1 3 . 1 6 2 2 3 . . 2 1 1 2 4 2 8 3 1 14 . 14 Device 43 | 1 . . . . . . 2 . 1 . . 2 . . 1 1 1 2 . . 1 . 1 . 4 2 6 1 1 5 . 11 Storage 9 | 1 1 . 3 . . . . 1 . . . . . . 2 . . . . . 1 . . . . . . . . . . . Processor 11 | . . . . . . . . . . . . . . . 2 1 1 . . . . . . . . . . 1 . 5 . 1 Hackware 6 | . . . . . . . . . . . . . . . . . . . . . . 1 . . . . 2 . . 2 . 1 Protection 22 | . 2 . 1 . . 1 3 1 2 1 1 1 . 1 1 . . 1 . . . . . 2 . . . 1 . 2 . 1 Artifact . | . . . . . . . . . . . . . . . . . . . . . . . . . . . . . . . . . Weapon 87 | 3 2 4 10 . . . 8 4 . 2 . 4 . 5 5 . . . . . . . 3 3 4 1 5 1 8 6 1 8 Energy Gun 5 | 1 . 1 . . . . . . . . . . . . . . . . . . . . 2 . . . 1 . . . . . Energy Cannon 6 | . . . . . . . . . . . . 1 . . 1 . . . . . . . . 1 . . 1 . 1 . 1 . Ballistic Gun 44 | 2 . 1 6 . . . 6 2 . 1 . 3 . 3 2 . . . . . . . 1 2 1 1 1 . 4 4 . 4 Ballistic Cannon 11 | . 1 1 1 . . . 1 . . . . . . 2 1 . . . . . . . . . . . . . 2 1 . 1 Launcher 9 | . . . 2 . . . . 1 . 1 . . . . . . . . . . . . . . . . 1 . 1 . . 3 Special Weapon 5 | . 1 . . . . . . . . . . . . . . . . . . . . . . . 3 . . 1 . . . . Impact Weapon 2 | . . . 1 . . . . 1 . . . . . . . . . . . . . . . . . . . . . . . . Slashing Weapon 4 | . . 1 . . . . 1 . . . . . . . 1 . . . . . . . . . . . 1 . . . . . Piercing Weapon 1 | . . . . . . . . . . . . . . . . . . . . . . . . . . . . . . 1 . . Special Melee Weapon . | . . . . . . . . . . . . . . . . . . . . . . . . . . . . . . . . . Unidentified Prototypes 22 | . . . . . . . 1 . . . . . . . . 2 . . . . . . . . 4 1 5 . 1 8 . . Parts Lost 39 | . . . 2 . . 1 4 3 . 2 . . . 2 . . . . . . . . 3 1 . 3 3 . 2 . . 13 Power 3 | . . . . . . . . . . . . . . . . . . . . . . . 1 . . 1 1 . . . . . Propulsion 11 | . . . 1 . . . 2 . . 1 . . . 2 . . . . . . . . . 1 . . 1 . 1 . . 2 Utility 13 | . . . 1 . . 1 2 2 . . . . . . . . . . . . . . . . . . . . . . . 7 Weapon 12 | . . . . . . . . 1 . 1 . . . . . . . . . . . . 2 . . 2 1 . 1 . . 4 Highest Loss Streak 9 | . . . 1 . . 1 3 1 . 1 . . . 2 . . . . . . . . 2 1 . 1 3 . 1 . . 9 To Critical Strikes 3 | . . . . . . . . . . . . . . . . . . . . . . . . . . . . . . . . 3 Average Backups 19 | 2 9 14 17 20 20 19 19 18 19 19 19 18 18 17 18 18 19 18 19 19 22 22 23 23 22 22 23 23 21 21 20 20 Power . | . . . . . . . . . . . . . . . 1 1 1 1 1 1 1 . . . . 1 1 2 1 1 1 . Propulsion 3 | . 2 5 6 6 5 4 4 5 7 5 5 5 5 4 3 4 4 4 4 4 4 3 3 2 1 1 . 2 2 1 2 1 Utility 7 | . 3 5 3 5 5 6 6 5 5 7 6 6 6 6 7 8 9 7 8 8 9 10 11 11 12 11 13 13 12 9 7 7 Weapon 6 | 1 2 4 8 8 8 8 7 6 5 6 7 5 6 6 5 4 4 4 4 4 5 6 7 7 6 7 6 5 4 8 9 9 Tool/Special . | . . . . . . . . . . . . . . . . . . . . . . . . . . . . . . . . . Unused Backups 53 | . 2 . 4 . 1 . 9 . 1 1 . 2 . . 3 . . . . . . . 2 1 7 . 3 . 1 4 1 11 Power 3 | . . . 1 . . . . . . . . . . . 1 . . . . . . . . . . . . . 1 . . . Propulsion 8 | . 1 . 1 . . . 1 . 1 . . . . . . . . . . . . . . . . . 1 . . 1 1 1 Utility 15 | . 1 . . . 1 . 2 . . . . 1 . . . . . . . . . . . . 2 . 1 . . 2 . 5 Weapon 25 | . . . 2 . . . 6 . . 1 . 1 . . 2 . . . . . . . 2 1 4 . . . . 1 . 5 Tool/Special 2 | . . . . . . . . . . . . . . . . . . . . . . . . . 1 . 1 . . . . . Average Slot Usage (%) 91 | . 98 100 99 100 100 99 91 97 100 98 88 99 100 94 83 92 93 92 93 93 93 93 89 93 87 81 82 92 88 85 87 83 Engine 5 | . 14 14 10 11 11 11 9 9 9 8 7 6 . . . . . . . . . 4 4 5 5 3 . . . . . . Reactor 4 | . . . . . . . . . . . . . 7 7 6 6 6 6 6 6 6 5 5 . . 1 6 9 9 13 12 9 Treads 16 | . 28 28 32 33 33 33 35 36 36 34 15 16 15 15 8 . . . . . . . . . . . . . 4 13 12 11 Wheel 7 | . . . . . . . . . . . 15 13 15 12 11 19 20 20 20 20 20 22 23 22 17 17 18 23 15 . . . Device 13 | . 2 . 10 11 11 11 8 5 . 3 4 6 7 7 10 13 17 25 25 26 26 17 16 15 12 13 12 9 10 15 19 26 Storage 7 | . 14 14 11 11 11 11 9 9 9 9 7 7 7 7 6 6 6 6 6 6 6 5 5 5 5 5 5 4 4 4 4 3 Processor 3 | . . . . . . . . . . . . . . . 8 13 9 6 6 6 6 5 5 5 5 5 5 7 9 9 12 6 Hackware 2 | . . . . . . . . . . . . . . . . . . . . . . 4 5 5 5 5 12 14 10 8 12 4 Protection 6 | . 9 14 10 11 11 10 8 12 18 14 14 15 15 15 12 5 5 . . . . . . 1 4 1 . 2 4 3 . 3 Energy Cannon 1 | . . . . . . . . . . . . . . . 1 . 4 6 6 6 6 5 5 4 3 . 4 4 5 . 3 2 Ballistic Gun 12 | . 12 10 14 22 22 21 12 19 27 20 15 23 23 19 2 13 13 13 6 6 6 5 4 10 11 15 7 . . 13 12 12 Ballistic Cannon 2 | . 6 13 5 . . . 5 2 . . . . . 2 9 6 1 1 . . . . . . . . . . 1 . . . Impact Weapon 1 | . . . . . . . . 1 . 1 . 3 . 2 1 . 5 2 5 6 6 5 5 4 5 4 4 . . . . . Peak Build Rating 215 | 7 8 13 19 18 19 21 36 36 37 38 41 48 47 55 66 73 71 77 77 74 76 88 93 89 97 105 117 122 154 202 211 215 Average Rating 82 | 5 7 11 16 18 18 20 29 34 35 33 35 40 47 49 58 65 69 75 73 74 75 85 85 86 91 93 107 119 127 180 210 210 On Entrance 66 | . 7 8 13 18 18 19 21 33 36 37 30 35 47 47 51 66 67 71 77 74 74 76 88 89 88 94 105 112 122 154 201 208 Avg Prop Armor Cover (%) 8 | . . . . . . . . . . 11 9 9 10 8 7 . . . . . . . . . . . . . 9 . . . Naked Turns 10 | . . . . . . . . . . . . . . . . . . . . . . . . . . . . . . . . 10 Heaviest Build 250 | 14 31 35 135 58 58 58 86 82 83 76 84 90 84 94 99 92 94 96 99 93 133 143 148 146 132 143 151 158 190 228 226 250 Greatest Support 240 | 40 40 40 60 60 60 62 82 82 80 80 22 80 22 48 48 48 48 48 48 48 48 64 64 72 72 72 92 92 225 225 230 240 Greatest Overweight (x) 6 | . . . 6 . . . 1 . 1 3 3 4 3 3 3 1 1 1 2 1 2 2 2 2 1 1 2 1 3 1 1 1 Average Overweight (x) . | . . . . . . . . . . . 3 3 3 2 2 1 1 1 1 1 1 2 1 1 1 1 1 1 2 . . . Largest Inventory Capacity 25 | 8 15 15 25 20 20 20 20 20 20 20 20 20 20 20 20 20 20 20 20 20 25 25 25 25 25 25 25 25 25 25 25 25 Average Capacity 21 | 6 10 15 20 20 20 20 20 20 20 20 20 20 20 20 20 20 20 20 20 20 24 25 25 25 25 25 25 25 25 25 25 24 Most Carried 25 | 3 15 15 20 20 20 20 20 20 20 20 20 20 20 20 20 20 20 20 20 20 24 25 25 25 25 25 25 25 25 25 24 25 Average Carried 20 | 2 9 14 17 20 19 19 19 18 19 19 19 19 19 19 19 19 19 19 20 20 23 23 24 24 24 23 24 24 24 23 23 23 Final Capacity 25 | 8 15 15 20 20 20 20 20 20 20 20 20 20 20 20 20 20 20 20 20 20 25 25 25 25 25 25 25 25 25 25 25 5 Final Carried 25 | 3 15 15 20 20 20 18 20 20 20 20 20 20 20 20 19 20 20 20 20 20 24 25 25 24 25 22 25 25 25 25 24 4 Class Distribution -------------------- 21% | Scavenger-Mutant 21% | Scavenger-Tank 11% | Scavenger-Assassin 10% | Scavenger-Skirmisher 9% | Mutant 7% | Derelict-Assassin 7% | Hacker-Assassin 4% | Hacker-Tank 4% | Hacker-Skirmisher Dominant Class ---------------- Mutant | -10/Materials Mutant | -10/Mines Scavenger-Mutant | -9/Materials Scavenger-Mutant | -9/Mines Scavenger-Mutant | -9/Exiles Scavenger-Mutant | -8/Mines Scavenger-Skirmisher | -8/Materials Scavenger-Skirmisher | -8/Garrison Scavenger-Tank | -8/Materials Scavenger-Mutant | -8/Garrison Scavenger-Mutant | -7/Factory Scavenger-Tank | -7/Garrison Scavenger-Tank | -7/Factory Scavenger-Tank | -7/DSF Scavenger-Tank | -6/Factory Scavenger-Skirmisher | -6/Waste Scavenger-Skirmisher | -6/Factory Scavenger-Skirmisher | -6/Lower Caves Scavenger-Assassin | -6/Lower Caves Scavenger-Assassin | -6/Data Miner Scavenger-Assassin | -5/Proximity Caves Scavenger-Assassin | -5/Factory Scavenger-Assassin | -5/Upper Caves Derelict-Assassin | -5/Upper Caves Derelict-Assassin | -5/Warlord Assassin | -4/Proximity Caves Hacker-Assassin | -4/Factory Hacker-Assassin | -3/Research Hacker-Assassin | -3/DSF Hacker-Assassin | -2/Research Hacker-Skirmisher | -1/Access Scavenger-Tank | -1/Command Resources | -11 -10 -10 -9 -9 -9 -8 -8 -8 -8 -8 -7 -7 -7 -7 -6 -6 -6 -6 -6 -6 -5 -5 -5 -5 -5 -4 -4 -3 -3 -2 -1 -1 ----------- Run | Yrd Mat Min Mat Min Exi Min Mat Gar Mat Gar Fac Gar Fac DSF Fac Was Fac Low Low Dat Pro Fac Upp Upp War Pro Fac Res DSF Res Acc Com Matter Collected 16886 | 275 779 420 1262 10 20 197 1551 1281 61 1276 121 1395 . 531 976 740 . 666 77 . 43 . 368 378 392 260 438 . 188 886 179 2116 Remotely 606 | . . . . . . . . . . . . . . . . . . . . . . . . . . . . . . . . 606 Salvage Created 15841 | 109 937 408 1223 . . 370 1513 1307 52 1005 162 1427 . 552 826 432 . 277 80 . 10 . 175 317 121 299 735 . 386 148 137 2833 Parts 768 | 5 53 32 84 . . 29 92 70 1 56 9 63 . 30 37 2 . 6 11 . . . . 16 5 7 16 . 22 7 11 104 Haulers Intercepted 9 | . 2 . 4 . . . 2 . . . . . . 1 . . . . . . . . . . . . . . . . . . Recyclers Shooed 6 | . 2 . . . . . . . . . . . . . 2 . . . . . . . . . . . 1 . . . . 1 Parts Field Recycled . | . . . . . . . . . . . . . . . . . . . . . . . . . . . . . . . . . Retrieved Matter . | . . . . . . . . . . . . . . . . . . . . . . . . . . . . . . . . . Parts Self-Destructed 41 | . . . . . . . . . . . . . . . . . . 5 11 . . . 3 17 . 5 . . . . . . Prevented 7 | . . . . . . . . . . . . . . . . . . 3 . . . . 2 1 . 1 . . . . . . Parts Restored . | . . . . . . . . . . . . . . . . . . . . . . . . . . . . . . . . . Kills | -11 -10 -10 -9 -9 -9 -8 -8 -8 -8 -8 -7 -7 -7 -7 -6 -6 -6 -6 -6 -6 -5 -5 -5 -5 -5 -4 -4 -3 -3 -2 -1 -1 ------- Run | Yrd Mat Min Mat Min Exi Min Mat Gar Mat Gar Fac Gar Fac DSF Fac Was Fac Low Low Dat Pro Fac Upp Upp War Pro Fac Res DSF Res Acc Com Combat Hostiles Destroyed 317 | . 17 12 32 . . 8 26 38 1 37 3 32 . 9 14 2 . 7 4 . 2 . 3 9 2 5 5 . 12 2 2 33 Melee 12 | . . . . . . . . . . 6 2 . . . . . . . . . . . . . . 3 1 . . . . . Guns 176 | . 4 8 20 . . 6 25 19 1 17 1 22 . 7 2 1 . . 1 . . . . 8 2 . . . . 2 2 28 Cannons 53 | . 13 4 7 . . . 1 7 . . . . . . 11 1 . 1 . . . . 1 . . . . . 7 . . . AOE 64 | . . . 5 . . 2 . 12 . 11 . 10 . 2 1 . . 6 3 . 2 . . . . . . . 5 . . 5 Classes Destroyed 24 | 2 7 . 2 . . 1 2 2 . 2 . . . . . 1 . . . . 1 . . 1 1 . . . . 2 . . Worker 16 | . 1 2 3 . . 2 2 . . . . . . . . . . . . . . . . . . . . . . 1 . 5 Builder 5 | . . . 1 . . 1 . . . . . . . . 2 . . . . . . . . . . . 1 . . . . . Tunneler 8 | 1 . 2 . . . 3 1 . . . 1 . . . . . . . . . . . . . . . . . . . . . Hauler 9 | . 2 . 4 . . . 2 . . . . . . 1 . . . . . . . . . . . . . . . . . . Recycler 19 | 1 3 1 . . . 2 3 . . . . . . . 2 . . . . . . . . . . . 4 . . . . 3 Mechanic 2 | . 1 . . . . . . . . . . . . . 1 . . . . . . . . . . . . . . . . . Operator 6 | . 2 . 2 . . . . . . . . . . . 1 . . . . . . . . . . . . . 1 . . . Drone 2 | . . . . . . . . . . . . . . . . . . . . . 2 . . . . . . . . . . . Watcher 9 | . 3 . 4 . . . 1 . . . . . . . . . . . . . . . . . . . . . . . . 1 Swarmer 99 | . 3 6 11 . . 7 7 7 . 15 . 11 . . 3 . . 7 4 . . . . 8 . 1 . . 5 . . 4 Saboteur 2 | . . . . . . . . . . 2 . . . . . . . . . . . . . . . . . . . . . . Grunt 102 | . 14 6 12 . . . 7 21 . 12 2 15 . 2 3 . . . . . . . 2 1 1 1 . . . . . 3 Brawler 7 | . . . . . . . . 2 . 1 . 1 . . . . . . . . . . . . . . . . . . . 3 Duelist 3 | . . . . . . . . . . 1 . . . 1 . . . . . . . . 1 . . . . . . . . . Sentry 34 | . . . 9 . . . 8 4 1 2 . 4 . 1 1 . . . . . . . . . . 2 1 . . . . 1 Demolisher 1 | . . . . . . . . . . . . . . . . . . . . . . . . . 1 . . . . . . . Specialist 16 | . . . . . . . 2 2 . 1 . . . 3 2 . . . . . . . . . . . 2 . 4 . . . Hunter 22 | . . . . . . 1 1 . . 2 . . . 1 2 . . . . . . . . . . . . . 2 . . 13 Programmer 22 | . . . . . . . . 2 . 2 1 1 . . 3 . . . . . . . . . . 2 2 . . . 2 7 Heavy 3 | . . . . . . . 1 . . . . . . 1 . . . . . . . . . . . . . . 1 . . . Compactor 2 | . . . . . . . . . . . . . . . . 2 . . . . . . . . . . . . . . . . Striker 3 | . . . . . . . . . . . . . . . . . . . . . . . . . . . . . . 1 . 2 Executioner 1 | . . . . . . . . . . . . . . . . . . . . . . . . . . . . . . 1 . . Decomposer 4 | . . . . . . . . . . . . . . . . . . 1 3 . . . . . . . . . . . . . Packrat 3 | . . . . . . . . . . . . . . . . . . 3 . . . . . . . . . . . . . . Samaritan 2 | . . . . . . . . . . . . . . . . . . . . . . . . 2 . . . . . . . . Thug 1 | . . . . . . . . . . . . 1 . . . . . . . . . . . . . . . . . . . . Best Kill Streak 11 | 2 4 3 8 . . 3 5 6 1 6 1 8 . 4 4 1 . 4 4 . 2 . 3 6 2 2 3 . 5 2 2 11 Combat Bots Only 11 | . 4 3 8 . . 3 5 6 1 6 1 8 . 4 3 1 . 4 4 . 2 . 3 6 2 3 2 . 5 2 2 11 Max Kills in Single Turn 3 | 1 1 2 2 . . 2 1 3 1 3 1 3 . 2 2 1 . 3 3 . 2 . 1 2 1 1 1 . 3 1 1 3 Gunslinging 1 | . . . 1 . . 1 . . . 1 . . . . . . . . . . . . . 1 . . . . . . . 1 Exploded 3 | . . . 2 . . 2 . 2 . 3 . 3 . 2 1 . . 3 3 . 2 . . . . . . . 2 . . 2 Melee 1 | . . . . . . . . . . 1 1 . . . . . . . . . . . . . . 1 1 . . . . . Uniques/NPCs Destroyed . | . . . . . . . . . . . . . . . . . . . . . . . . . . . . . . . . . Combat | -11 -10 -10 -9 -9 -9 -8 -8 -8 -8 -8 -7 -7 -7 -7 -6 -6 -6 -6 -6 -6 -5 -5 -5 -5 -5 -4 -4 -3 -3 -2 -1 -1 -------- Run | Yrd Mat Min Mat Min Exi Min Mat Gar Mat Gar Fac Gar Fac DSF Fac Was Fac Low Low Dat Pro Fac Upp Upp War Pro Fac Res DSF Res Acc Com Hostile Shots Fired 1656 | . 63 21 111 . . 23 119 122 . 111 11 120 . 60 77 . . 13 4 . . 2 37 54 8 82 95 . 51 37 8 427 Missed 499 | . 18 8 38 . . 5 35 30 . 41 5 37 . 22 23 . . 2 . . . . 8 16 1 24 26 . 23 10 2 125 Intercepted 2 | . . . . . . . . . . . . . . . . . . . . . . . . . . . . . . . . 2 Hits 1157 | . 45 13 73 . . 18 84 92 . 70 6 83 . 38 54 . . 11 4 . . 2 29 38 7 58 69 . 28 27 6 302 Melee 17 | . . . . . . . . 1 . 4 . 1 . . . . . . . . . . 5 . . . . . . 5 . 1 Projectile 1140 | . 45 13 73 . . 18 84 91 . 66 6 82 . 38 54 . . 11 4 . . 2 24 38 7 58 69 . 28 22 6 301 AOE 10 | . . . . . . . . . . . . . . . . . . . . . . . . . 3 . . . . . . 7 Critical Strikes 38 | . . . 1 . . . 1 5 . 2 . 1 . 1 1 . . . . . . . 2 . 1 2 . . . 2 1 18 Part Disruptions 4 | . . . . . . . . . . . . . . . . . . . . . . . 2 . . . . . . . . 2 Damage Taken 20201 | . 495 133 950 . . 160 1474 1477 . 1054 91 1019 . 497 953 . . 164 62 . 26 39 939 561 183 1147 1073 . 707 427 202 6368 Core 2730 | . 83 7 138 . . 10 122 134 . 114 14 139 . 31 32 . . . . . . . 18 58 27 113 239 . 97 71 25 1258 Absorbed by Shields 2030 | . . . . . . . . . . . . . . . . . . . . . . . . . 70 . . . . 437 . 1523 Reduced by Siege Mode 522 | . . . . . . . . . . . . . . . . . . . . . . . . . . . . . 7 23 . 492 Regen/Repaired (Parts) 993 | . . . 103 . . . 116 . . . . . . . 217 . . . . . . 313 . . 3 . 241 . . . . . Core Remaining (%) 71 | 100 . 64 . . . 63 . . . 32 . . . 73 . . . . . . 96 . . . . 78 79 . 92 95 . 19 Volleys Fired 1062 | 5 102 18 90 . . 19 95 106 2 60 4 89 . 25 60 28 20 10 8 . 15 12 21 33 20 . 16 . 20 11 61 112 Largest 4 | 2 2 2 2 . . 2 3 3 1 3 2 4 . 4 3 3 1 4 2 . 1 1 2 3 3 . 2 . 2 4 4 4 Hottest 231 | 60 100 95 100 . . 50 78 86 28 84 56 112 . 112 140 103 90 193 118 . 90 90 118 92 105 . 105 . 100 149 149 231 Shots Fired 2146 | 10 190 39 169 . . 37 245 223 2 145 8 171 . 73 92 84 20 13 9 . 15 12 27 60 52 . 17 . 35 42 79 277 Gun 1542 | 10 128 20 126 . . 36 225 174 2 128 8 152 . 69 14 56 . 2 1 . . . 6 45 48 . 2 . . 42 24 224 Cannon 502 | . 52 19 32 . . . 20 36 . . . 7 . 1 78 28 20 4 7 . 14 12 15 15 4 . 15 . 30 . 55 38 Launcher 82 | . . . 5 . . 1 . 13 . 17 . 12 . 3 . . . 7 1 . 1 . 6 . . . . . 5 . . 11 Special 20 | . 10 . 6 . . . . . . . . . . . . . . . . . . . . . . . . . . . . 4 Kinetic 1756 | 5 144 34 158 . . 36 245 210 2 128 8 152 . 70 79 84 5 3 1 . . . 6 45 48 . 2 . . 42 24 225 Thermal 278 | 5 46 5 6 . . . . . . . . 7 . . 13 . 15 3 7 . 14 12 15 15 4 . 15 . . . 55 41 Explosive 82 | . . . 5 . . 1 . 13 . 17 . 12 . 3 . . . 7 1 . 1 . 6 . . . . . 5 . . 11 Electromagnetic . | . . . . . . . . . . . . . . . . . . . . . . . . . . . . . . . . . Entropic 30 | . . . . . . . . . . . . . . . . . . . . . . . . . . . . . 30 . . . Robot Hit Streak 31 | 5 11 9 13 . . 5 15 9 1 14 2 13 . 13 12 10 . 3 1 . . . 5 7 4 . 3 . 11 11 12 31 Robot Miss Streak 13 | 1 5 7 6 . . 5 3 4 1 3 2 12 . 3 3 3 . 2 1 . . . 3 13 3 . 2 . 2 6 6 12 Penetration Max 3 | . . . . . . . 1 1 . . . 1 . . . . . . . . . . . . . . . . . 1 . 3 Secondary Targets 26 | . 1 . 2 . . 1 5 2 . 1 . 2 . . . . . . . . . . . 2 1 . . . . . . 9 Max Gunslinging Chain 1 | . 1 . 1 . . 1 1 1 . 1 . 1 . . . . . . . . . . . 1 1 . . . . . . 1 Shots Hit Robots 1214 | 7 108 20 119 . . 22 157 101 1 87 12 119 . 42 45 55 . 8 4 . . . 16 25 27 23 26 . 17 29 16 128 Core Hits 738 | 3 47 22 90 . . 19 53 62 1 49 4 140 . 23 22 10 . 8 4 . 2 . 7 13 12 4 2 . 21 7 6 107 Critical Kills 22 | . . . . . . 1 2 1 . . . . . . . . . . . . . . 2 1 . . . . . . . 15 Critical Parts Destroyed 53 | . . . 1 . . . 2 . . 3 1 . . 1 . . . 1 1 . . . 1 2 1 3 8 . . 2 1 25 Critical Strikes 99 | . 2 1 1 . . 1 4 2 . 5 2 1 . 1 4 . . 1 1 . . . 3 3 1 6 8 . 8 2 1 41 Meltdown 1 | . . . . . . . . . . . . . . . . . . . . . . . 1 . . . . . . . . . Destroy 57 | . . . 1 . . 1 4 1 . 1 1 . . 1 . . . . . . . . 1 1 1 . . . . 2 1 41 Blast 8 | . 2 1 . . . . . 1 . . . . . . 4 . . . . . . . . . . . . . . . . . Smash 19 | . . . . . . . . . . 2 . . . . . . . 1 1 . . . 1 2 . 4 8 . . . . . Sever 6 | . . . . . . . . . . 2 1 1 . . . . . . . . . . . . . 2 . . . . . . Sunder 8 | . . . . . . . . . . . . . . . . . . . . . . . . . . . . . 8 . . . Melee Attacks 291 | . . . 7 . . . 23 8 . 31 21 43 3 12 13 . 7 4 6 . 4 8 14 5 4 30 37 . . 11 . . Impact 153 | . . . 3 . . . 3 2 . 13 . 12 . 3 9 . 7 4 6 . 4 8 14 5 4 22 34 . . . . . Slashing 127 | . . . 4 . . . 20 6 . 18 21 31 3 9 4 . . . . . . . . . . 8 3 . . . . . Piercing 11 | . . . . . . . . . . . . . . . . . . . . . . . . . . . . . . 11 . . Sneak Attacks 44 | . . . 1 . . . 6 . . 7 4 . . . 4 . . 3 3 . . . . 2 . 7 6 . . 1 . . Combat Hostiles 1 | . . . . . . . . . . . 1 . . . . . . . . . . . . . . . . . . . . . Follow-up Attacks . | . . . . . . . . . . . . . . . . . . . . . . . . . . . . . . . . . Damage Inflicted 40477 | 84 1498 382 2711 . . 537 3268 3666 17 3357 487 4104 . 1086 2036 1563 . 979 513 . 99 . 948 734 715 970 1395 . 2008 1103 582 5635 Guns 18906 | 84 886 215 1508 . . 397 2502 1890 17 1118 100 1920 . 748 208 977 . . 21 . . . 51 456 715 . . . . 987 453 3653 Cannons 6133 | . 612 167 527 . . . 333 770 . . . . . 55 1346 586 . 58 . . . . 158 . . . 107 . 1192 . 129 93 Explosions 8556 | . . . 563 . . 140 . 1006 . 1331 . 1184 . 283 94 . . 568 170 . 99 . 413 . . . . . 816 . . 1889 Melee 6876 | . . . 113 . . . 433 . . 908 387 1000 . . 382 . . 353 322 . . . 326 278 . 970 1288 . . 116 . . Ramming 6 | . . . . . . . . . . . . . . . 6 . . . . . . . . . . . . . . . . . Kinetic 22879 | 61 1309 306 2035 . . 397 2835 2660 17 1118 100 1920 . 803 1392 1563 . 27 21 . . . 51 456 715 . . . . 987 453 3653 Thermal 968 | 23 189 76 . . . . . . . . . . . . 162 . . 31 . . . . 158 . . . 107 . . . 129 93 Explosive 8556 | . . . 563 . . 140 . 1006 . 1331 . 1184 . 283 94 . . 568 170 . 99 . 413 . . . . . 816 . . 1889 Electromagnetic . | . . . . . . . . . . . . . . . . . . . . . . . . . . . . . . . . . Impact 3811 | . . . 113 . . . . . . 313 . . . . 251 . . 353 322 . . . 326 278 . 672 1183 . . . . . Slashing 2949 | . . . . . . . 433 . . 595 387 1000 . . 131 . . . . . . . . . . 298 105 . . . . . Piercing 116 | . . . . . . . . . . . . . . . . . . . . . . . . . . . . . . 116 . . Entropic 1192 | . . . . . . . . . . . . . . . . . . . . . . . . . . . . . 1192 . . . Highest Corruption 14 | . 2 2 . . . . . 4 4 5 . . . . 1 . . . . . . 1 10 7 7 14 . . 2 5 1 9 Average Corruption 4 | . 2 2 . . . . . 3 4 4 . . . . 1 . . . . . . 1 3 7 2 9 . . 1 5 1 5 Corruption Purged 13 | . . . . . . . . . . . . . . . 1 . . . . . . . 3 . . . . . . . . 9 Corruption Blocked 1 | . . . . . . . . . . . . . . . . . . . . . . . . . . . . . . . . 1 Effects 254 | . 5 15 . . . . . 22 3 41 . . . . 5 . . . . . . 1 26 32 1 26 . . 2 25 2 48 Message Errors 67 | . 1 2 . . . . . 4 . 14 . . . . 2 . . . . . . 1 11 7 . 6 . . 1 2 1 15 Matter Fused 61 | . 1 2 . . . . . 7 1 11 . . . . 1 . . . . . . . 4 5 . 9 . . . 10 1 9 Heat Flow Errors 32 | . 2 . . . . . . 4 1 3 . . . . 1 . . . . . . . 5 5 . 3 . . . 3 . 5 Energy Discharges 27 | . . 2 . . . . . 5 1 3 . . . . 1 . . . . . . . 1 5 . 1 . . 1 1 . 6 Parts Rejected 2 | . . . . . . . . . . 1 . . . . . . . . . . . . . . . 1 . . . . . . Parts Fused 1 | . . . . . . . . . . . . . . . . . . . . . . . . 1 . . . . . . . . Data Loss (minor) 30 | . 1 4 . . . . . 2 . 4 . . . . . . . . . . . . 3 4 . 2 . . . 5 . 5 Data Loss (major) 13 | . . 2 . . . . . . . . . . . . . . . . . . . . 2 2 1 2 . . . 1 . 3 Misfires 10 | . . 3 . . . . . . . 3 . . . . . . . . . . . . . 2 . . . . . 1 . 1 Alerts 5 | . . . . . . . . . . 1 . . . . . . . . . . . . . . . 2 . . . 2 . . Weapon Failures 6 | . . . . . . . . . . 1 . . . . . . . . . . . . . 1 . . . . . . . 4 Overload Shots . | . . . . . . . . . . . . . . . . . . . . . . . . . . . . . . . . . Overflow Damage 2948 | . 2 . 84 . . . 109 31 . 242 84 97 . . 207 . . 397 290 . . . 167 179 . 184 646 . 52 76 21 80 Projectiles 116 | . 2 . . . . . . 31 . . . . . . 35 . . 6 . . . . . . . . 17 . 4 . 21 . Explosions 240 | . . . 11 . . . . . . 27 . 24 . . . . . 50 . . . . . . . . . . 48 . . 80 Melee 2592 | . . . 73 . . . 109 . . 215 84 73 . . 172 . . 341 290 . . . 167 179 . 184 629 . . 76 . . Knockbacks 30 | . 3 . 10 . . . . 2 . . . . . . 6 1 . 1 . . . . 1 1 . . 5 . . . . . Impact 8 | . . . . . . . . . . . . . . . . . . 1 . . . . 1 1 . . 5 . . . . . Kinetic 22 | . 3 . 10 . . . . 2 . . . . . . 6 1 . . . . . . . . . . . . . . . . Secondary . | . . . . . . . . . . . . . . . . . . . . . . . . . . . . . . . . . Self-Inflicted Damage 269 | . . . . . . . . 38 . 90 . 33 . . . . . . . . 27 . . . . . . . 21 . . 60 Shots 8 | . . . . . . . . 1 . 2 . 1 . . . . . . . . 1 . . . . . . . 2 . . 1 Rammed 1 | . . . . . . . . . . . . . . . 1 . . . . . . . . . . . . . . . . . Targets Rammed 1 | . . . . . . . . . . . . . . . 1 . . . . . . . . . . . . . . . . . Kicked . | . . . . . . . . . . . . . . . . . . . . . . . . . . . . . . . . . Crushed . | . . . . . . . . . . . . . . . . . . . . . . . . . . . . . . . . . Highest Temperature 669 | . 326 141 102 . . . 314 418 106 271 21 346 . . 248 241 132 129 102 . 102 168 422 370 256 178 126 . 252 422 270 669 Average Temperature 83 | . 29 31 18 . . . 77 110 46 76 11 100 . . 44 74 54 56 49 . 49 73 123 153 62 70 50 . 74 151 85 102 Received Heat Transfer 3074 | . 210 33 318 . . . 279 621 . 225 54 231 . 87 48 . . . . . . . 234 9 31 66 312 . 18 29 . 269 Effects 39 | . . . . . . . 2 6 . . . 1 . . . . . . . . . . . 7 . . . . . 4 . 19 Shutdowns 13 | . . . . . . . . 2 . . . . . . . . . . . . . . . 2 . . . . . 3 . 6 Energy Bleed 7 | . . . . . . . . 1 . . . . . . . . . . . . . . . 3 . . . . . . . 3 Interference 8 | . . . . . . . 2 2 . . . . . . . . . . . . . . . 2 . . . . . . . 2 Short Circuit 3 | . . . . . . . . . . . . 1 . . . . . . . . . . . . . . . . . 1 . 1 Damage (minor) 1 | . . . . . . . . 1 . . . . . . . . . . . . . . . . . . . . . . . . Damage (major) 7 | . . . . . . . . . . . . . . . . . . . . . . . . . . . . . . . . 7 Siege Activations 11 | . . . . . . . . . . . . . . . . . . . . . . . . . . . . . 3 1 1 6 Total Turns 170 | . . . . . . . . . . . . . . . . . . . . . . . . . . . . . 19 27 6 118 Longest Duration 41 | . . . . . . . . . . . . . . . . . . . . . . . . . . . . . 13 27 6 41 Martial Activations . | . . . . . . . . . . . . . . . . . . . . . . . . . . . . . . . . . Shielding Activations . | . . . . . . . . . . . . . . . . . . . . . . . . . . . . . . . . . Robots Disrupted . | . . . . . . . . . . . . . . . . . . . . . . . . . . . . . . . . . Combat Hostiles . | . . . . . . . . . . . . . . . . . . . . . . . . . . . . . . . . . Robots Corrupted 19 | . . . . . . . . . . 3 . . . . 2 . . 2 . . . . 1 3 . 2 6 . . . . . Combat Hostiles 11 | . . . . . . . . . . 3 . . . . . . . . . . . . 1 1 . 2 4 . . . . . Parts Fried 23 | . . . . . . . . . . . . . . . 4 . . 1 . . . . . 1 . 2 15 . . . . . Impact Corruptions 78 | . . . 3 . . . . . . 5 . . . . 4 . . 9 11 . . . 4 19 . 5 18 . . . . . Robots Melted 1 | . . . . . . . . . . . . . . . . . . . . . . . 1 . . . . . . . . . Combat Hostiles 1 | . . . . . . . . . . . . . . . . . . . . . . . 1 . . . . . . . . . Parts Melted 3 | . . . 1 . . . . . . . . . . . 1 . . . . . . . . . . . 1 . . . . . Heat Transferred 1506 | 50 425 185 . . . . . . . . . . . . 250 . . 50 . . . . 250 . . . 111 . . . 111 74 Parts Sabotaged 4 | . . . . . . . . . . 4 . . . . . . . . . . . . . . . . . . . . . . Parts Stolen . | . . . . . . . . . . . . . . . . . . . . . . . . . . . . . . . . . Parts Stripped . | . . . . . . . . . . . . . . . . . . . . . . . . . . . . . . . . . Power Chain Reactions . | . . . . . . . . . . . . . . . . . . . . . . . . . . . . . . . . . Alert | -11 -10 -10 -9 -9 -9 -8 -8 -8 -8 -8 -7 -7 -7 -7 -6 -6 -6 -6 -6 -6 -5 -5 -5 -5 -5 -4 -4 -3 -3 -2 -1 -1 ------- Run | Yrd Mat Min Mat Min Exi Min Mat Gar Mat Gar Fac Gar Fac DSF Fac Was Fac Low Low Dat Pro Fac Upp Upp War Pro Fac Res DSF Res Acc Com Maximum Alert Level 5 | . . . 1 . . . . 4 3 5 3 5 3 3 2 . . . . . . . . . . . . . 1 . . 3 Low Security (%) 55 | 100 100 100 35 100 . 100 100 4 . . . . . . . 100 100 . . . . 100 . . . . 100 100 64 100 100 21 Level 1 13 | . . . 64 . . . . 16 . . . . . . 51 . . . . . . . . . . . . . 35 . . 8 Level 2 15 | . . . . . . . . 25 . 15 . 8 . 17 48 . . . . . . . . . . . . . . . . 61 Level 3 8 | . . . . . . . . 23 100 23 100 35 100 82 . . . . . . . . . . . . . . . . . 8 Level 4 5 | . . . . . . . . 29 . 39 . 41 . . . . . . . . . . . . . . . . . . . . Level 5 1 | . . . . . . . . . . 21 . 14 . . . . . . . . . . . . . . . . . . . . High Security . | . . . . . . . . . . . . . . . . . . . . . . . . . . . . . . . . . Max Security . | . . . . . . . . . . . . . . . . . . . . . . . . . . . . . . . . . Sterilizations 2 | . . . . . . . . . . . . . . 1 . . . . . . . . . . . . . . 1 . . . Peak Influence 1892 | 10 187 118 376 141 . 102 197 1514 771 1892 993 1830 960 886 559 187 10 . . . . 15 . . . . 76 . 347 195 58 914 Initial 993 | . . 33 27 141 . . . 6 737 484 993 574 960 649 464 187 9 . . . . . . . . . 12 . . 195 . 34 Average 324 | . 91 40 204 28 . 18 93 788 735 1221 896 1171 945 776 410 101 . . . . . . . . . . 14 . 203 35 8 407 Influence Increases 12077 | 10 613 345 1042 . . 267 904 1538 78 1488 158 1296 8 257 678 6 19 160 90 . 10 53 75 215 163 125 254 . 367 139 263 1456 Destroy 0b10 Robot/C 6500 | . 340 240 640 . . 160 520 760 20 800 100 700 . 180 280 . . 140 80 . . . 60 180 120 100 100 . 240 40 40 660 Destroy 0b10 Robot/NC 415 | 10 60 25 70 . . 40 45 . 5 . 10 25 . 5 25 . . . . . 10 . 5 . 5 . 25 . . 5 . 45 Destroy Leader 1006 | . 90 50 196 . . 30 156 20 12 30 20 50 . 30 90 . . 20 10 . . . 10 20 . 10 30 . 30 10 10 82 Allied During Kill 122 | . . . . . . . . . 7 26 15 36 . . . . . . . . . . . . 38 . . . . . . . Successful Hack 354 | . 22 . 38 . . . 25 14 4 . 4 7 5 . 33 . . . . . . 6 . . . . 42 . . . 63 91 Select Force Hacks 90 | . 60 . 30 . . . . . . . . . . . . . . . . . . . . . . . . . . . . . Disable Machine 540 | . 30 . 15 . . 15 45 75 30 30 . 30 . 15 120 . . . . . . . . . . . 15 . 15 45 . 60 Anti-Garrison Action 1150 | . . . . . . . . 450 . 400 . 250 . . . . . . . . . . . . . . . . . . . 50 Destroy Structure 1405 | . 11 . 38 . . 7 68 159 . 112 9 138 3 27 100 6 19 . . . . 32 . . . . 42 . 82 39 120 393 Partial Spotted 60 | . . . . . . . . . . 15 . . . . . . . . . . . 15 . . . . . . . . 15 15 Lose Combat Pursuer 435 | . . 30 15 . . 15 45 60 . 75 . 60 . . 30 . . . . . . . . 15 . 15 . . . . 15 60 Influence Decreases 11253 | 10 526 362 750 362 . 267 894 34 847 341 1229 287 910 299 1027 530 32 160 90 . 10 53 75 173 146 164 273 1 20 486 209 686 Entered New Map 4713 | . . 54 43 221 . . . 4 777 261 899 247 870 279 422 350 4 . . . . . . . 42 59 8 1 . 152 . 20 Time Decay 5504 | 10 526 308 537 141 . 267 548 . 70 . 230 . 40 . 595 180 28 160 90 . 10 53 75 163 54 95 245 . . 334 209 536 Lost Part 320 | . . . 20 . . . 40 30 . 20 . . . 20 . . . . . . . . . 10 . 10 20 . 20 . . 130 Lost Ally 270 | . . . . . . . 10 . . 60 100 40 . . 10 . . . . . . . . . 50 . . . . . . . Purge Threat 446 | . . . 150 . . . 296 . . . . . . . . . . . . . . . . . . . . . . . . . Squads Dispatched 80 | . 4 1 3 . . . 7 . 1 . 2 . 1 2 13 . 1 . . . . 2 . . . . 3 . 1 3 9 27 Investigation 6 | . 2 1 1 . . . . . . . . . 1 . . . . . . . . . . . . . . . . 1 . . Extermination 25 | . . . . . . . . . . . 1 . . . 2 . 1 . . . . 2 . . . . 2 . . . 4 13 Reinforcement 31 | . 2 . 2 . . . 3 . . . . . . 2 6 . . . . . . . . . . . 1 . 1 2 2 10 Assault 10 | . . . . . . . . . . . 1 . . . 5 . . . . . . . . . . . . . . . . 4 Garrison 8 | . . . . . . . 4 . 1 . . . . . . . . . . . . . . . . . . . . . 3 . Intercept . | . . . . . . . . . . . . . . . . . . . . . . . . . . . . . . . . . Searches Triggered . | . . . . . . . . . . . . . . . . . . . . . . . . . . . . . . . . . Construction Impeded . | . . . . . . . . . . . . . . . . . . . . . . . . . . . . . . . . . Haulers Reinforced . | . . . . . . . . . . . . . . . . . . . . . . . . . . . . . . . . . Active Scanning Responses . | . . . . . . . . . . . . . . . . . . . . . . . . . . . . . . . . . Cargo Convoy Interrupts 1 | . . . . . . . . . . . . . . . 1 . . . . . . . . . . . . . . . . . Stealth | -11 -10 -10 -9 -9 -9 -8 -8 -8 -8 -8 -7 -7 -7 -7 -6 -6 -6 -6 -6 -6 -5 -5 -5 -5 -5 -4 -4 -3 -3 -2 -1 -1 --------- Run | Yrd Mat Min Mat Min Exi Min Mat Gar Mat Gar Fac Gar Fac DSF Fac Was Fac Low Low Dat Pro Fac Upp Upp War Pro Fac Res DSF Res Acc Com Distress Signals 20 | . 1 . 5 . . . 2 . . . . . . . 1 . . . . . . . . . . . . . . 5 . 6 Communications Jammed 24 | . . . . . . . . . . . . . . . 1 . . . . . . . . . . . 2 . . . 14 7 Distress Signals 23 | . . . . . . . . . . . . . . . 1 . . . . . . . . . . . 2 . . . 14 6 Times Spotted 470 | . 31 13 45 . . 8 36 40 2 34 7 34 . 8 17 7 . 7 4 . . 1 3 11 39 7 10 . 10 16 10 70 Peak Tracking Total 16 | . 3 4 10 . . 4 4 6 1 4 3 7 . 3 2 3 . 4 4 . . 1 3 5 11 4 2 . 5 7 3 16 Tactical Retreats 25 | . . 2 1 . . 1 3 2 . 4 . 3 . . 2 1 . . . . . . . 1 . 1 . . . . 1 3 Traps | -11 -10 -10 -9 -9 -9 -8 -8 -8 -8 -8 -7 -7 -7 -7 -6 -6 -6 -6 -6 -6 -5 -5 -5 -5 -5 -4 -4 -3 -3 -2 -1 -1 ------- Run | Yrd Mat Min Mat Min Exi Min Mat Gar Mat Gar Fac Gar Fac DSF Fac Was Fac Low Low Dat Pro Fac Upp Upp War Pro Fac Res DSF Res Acc Com Traps Triggered 23 | . 3 . 3 . . . 1 1 . 2 . 3 . . 3 . . . . . . . 1 . . . 3 . . . 1 2 Indirectly . | . . . . . . . . . . . . . . . . . . . . . . . . . . . . . . . . . Trap Hack Attempts . | . . . . . . . . . . . . . . . . . . . . . . . . . . . . . . . . . Triggered . | . . . . . . . . . . . . . . . . . . . . . . . . . . . . . . . . . Disarmed . | . . . . . . . . . . . . . . . . . . . . . . . . . . . . . . . . . Reprogrammed . | . . . . . . . . . . . . . . . . . . . . . . . . . . . . . . . . . Reused . | . . . . . . . . . . . . . . . . . . . . . . . . . . . . . . . . . Traps Extracted . | . . . . . . . . . . . . . . . . . . . . . . . . . . . . . . . . . Installed . | . . . . . . . . . . . . . . . . . . . . . . . . . . . . . . . . . Triggered . | . . . . . . . . . . . . . . . . . . . . . . . . . . . . . . . . . Machines | -11 -10 -10 -9 -9 -9 -8 -8 -8 -8 -8 -7 -7 -7 -7 -6 -6 -6 -6 -6 -6 -5 -5 -5 -5 -5 -4 -4 -3 -3 -2 -1 -1 ---------- Run | Yrd Mat Min Mat Min Exi Min Mat Gar Mat Gar Fac Gar Fac DSF Fac Was Fac Low Low Dat Pro Fac Upp Upp War Pro Fac Res DSF Res Acc Com Machines Disabled 58 | . 2 . 1 . . 1 3 14 2 9 . 6 . 1 8 . . . . . . . . . . . 1 . 1 3 . 6 Max in Single Turn 4 | . 1 . 1 . . 1 1 2 1 2 . 2 . 1 4 . . . . . . . . . . . 1 . 1 1 . 2 Garrison Access 7 | . . . . . . . . . . . . . . . 2 . . . . . . . . . . . 2 . . 2 1 . Garrison Relay 13 | . . . . . . . . 6 . 5 . 2 . . . . . . . . . . . . . . . . . . . . Phase Generator 4 | . . . . . . . . 1 . 1 . 1 . . . . . . . . . . . . . . . . . . . 1 Machines Repaired . | . . . . . . . . . . . . . . . . . . . . . . . . . . . . . . . . . Machines Dismantled 3 | . . . . . . . . . . . . . . . . . . . . . . . . . . . . . . 2 . 1 Machines Sabotaged . | . . . . . . . . . . . . . . . . . . . . . . . . . . . . . . . . . Overloaded Fab Kills . | . . . . . . . . . . . . . . . . . . . . . . . . . . . . . . . . . Hacking | -11 -10 -10 -9 -9 -9 -8 -8 -8 -8 -8 -7 -7 -7 -7 -6 -6 -6 -6 -6 -6 -5 -5 -5 -5 -5 -4 -4 -3 -3 -2 -1 -1 --------- Run | Yrd Mat Min Mat Min Exi Min Mat Gar Mat Gar Fac Gar Fac DSF Fac Was Fac Low Low Dat Pro Fac Upp Upp War Pro Fac Res DSF Res Acc Com Machines Accessed 103 | . 8 1 16 . 3 . 14 3 1 1 2 2 2 . 7 . 2 . . 3 . 5 1 1 1 1 12 1 . 1 7 8 Terminals 60 | . 5 . 10 . . . 9 3 . 1 . 2 1 . 4 . 1 . . . . 2 . . . 1 7 1 . . 5 8 Fabricators 1 | . . . . . . . . . . . . . . . . . . . . . . 1 . . . . . . . . . . Repair Stations 10 | . 1 . 2 . . . 1 . . . 1 . . . 2 . . . . . . 2 . . . . 1 . . . . . Recycling Units 10 | . 2 . 2 . . . 2 . . . . . 1 . . . 1 . . . . . . . . . 1 . . . 1 . Scanalyzers 5 | . . . 2 . . . 1 . . . . . . . 1 . . . . . . . . . . . 1 . . . . . Garrison Access 7 | . . . . . . . 1 . 1 . 1 . . . . . . . . . . . . . . . 2 . . 1 1 . Total Hacks 317 | . 20 1 62 . 31 . 47 5 1 1 5 2 5 . 14 . 4 . . 22 . 17 1 1 1 1 39 1 . 2 16 18 Successful 225 | . 13 1 48 . 31 . 30 2 1 . 2 2 1 . 9 . 1 . . 22 . 10 1 1 1 1 31 1 . . 8 8 Failed 90 | . 7 . 13 . . . 17 3 . 1 3 . 4 . 5 . 3 . . . . 7 . . . . 7 . . 2 8 10 Catastrophic 6 | . . . . . . . 1 . . . . . . . 1 . . . . . . . . . . . . . . 2 . 2 Database Lockouts 2 | . . . 1 . . . . . . . . . . . . . . . . . . . . . . . 1 . . . . . Manual 120 | . 15 . 28 . 1 . 26 . . . . . . . 5 . 2 . . . . 4 . . 1 . 17 . . . 9 12 Terminals 163 | . 14 . 37 . . . 32 5 . 1 . 2 3 . 8 . 2 . . . . 6 . . . 1 19 1 . . 14 18 Fabricators 2 | . . . . . . . . . . . . . . . . . . . . . . 2 . . . . . . . . . . Repair Stations 30 | . 2 . 6 . . . 2 . . . 4 . . . 4 . . . . . . 9 . . . . 3 . . . . . Recycling Units 30 | . 4 . 8 . . . 7 . . . . . 2 . . . 2 . . . . . . . . . 6 . . . 1 . Scanalyzers 25 | . . . 11 . . . 5 . . . . . . . 2 . . . . . . . . . . . 7 . . . . . Garrison Access 10 | . . . . . . . 1 . 1 . 1 . . . . . . . . . . . . . . . 4 . . 2 1 . Terminal Hacks 92 | . 1 1 13 . 31 . 5 2 . . . 2 1 . . . . . . 22 . . 1 1 1 1 2 1 . . 2 5 Record 36 | . . . 3 . 30 . . . . . . . . . . . . . . 2 . . . . . 1 . . . . . . Part Schematic 12 | . . . . . . . . . . . . . . . . . . . . 12 . . . . . . . . . . . . Robot Schematic 5 | . . . . . . . . . . . . . . . . . . . . 5 . . . . . . . . . . . . Robot Analysis 5 | . . . 3 . . . 1 . . . . . . . . . . . . . . . . . . . . . . . . 1 Prototype ID Bank 7 | . 1 . 2 . . . 1 . . . . . . . . . . . . 3 . . . . . . . . . . . . Open Door 5 | . . 1 . . . . . . . . . 1 . . . . . . . . . . 1 1 1 . . . . . . . Open DSF 2 | . . . . . . . . . . . . . 1 . . . . . . . . . . . . . . 1 . . . . Branch Access Points 1 | . . . . . . . . . . . . . . . . . . . . . . . . . . . . . . . 1 . Emergency Access Points 2 | . . . . . . . . 1 . . . 1 . . . . . . . . . . . . . . . . . . . . Terminal Index 1 | . . . . . . . . . . . . . . . . . . . . . . . . . . . . . . . 1 . Alert Level 4 | . . . 1 . . . . . . . . . . . . . . . . . . . . . . . . . . . . 3 Unreport Threat 3 | . . . 1 . . . 2 . . . . . . . . . . . . . . . . . . . . . . . . . Locate Traps 5 | . . . 2 . . . 1 . . . . . . . . . . . . . . . . . . . 1 . . . . 1 Hauler Manifests 1 | . . . 1 . . . . . . . . . . . . . . . . . . . . . . . . . . . . . Registered Components 1 | . . . . . . . . . . . . . . . . . . . . . . . . . . . 1 . . . . . Garrison Registry 1 | . . . . . . . . 1 . . . . . . . . . . . . . . . . . . . . . . . . Proto ID Catalog 1 | . . . . . 1 . . . . . . . . . . . . . . . . . . . . . . . . . . . Fabricator Hacks 1 | . . . . . . . . . . . . . . . . . . . . . . 1 . . . . . . . . . . Build 1 | . . . . . . . . . . . . . . . . . . . . . . 1 . . . . . . . . . . Repair Station Hacks 22 | . 1 . 5 . . . 2 . . . 1 . . . 4 . . . . . . 7 . . . . 2 . . . . . Scan Component 12 | . . . 3 . . . 1 . . . 1 . . . 2 . . . . . . 4 . . . . 1 . . . . . Repair 9 | . . . 2 . . . 1 . . . . . . . 2 . . . . . . 3 . . . . 1 . . . . . Refit 1 | . 1 . . . . . . . . . . . . . . . . . . . . . . . . . . . . . . . Recycling Unit Hacks 23 | . 1 . 7 . . . 7 . . . . . . . . . 1 . . . . . . . . . 6 . . . 1 . Recycle Component 1 | . . . 1 . . . . . . . . . . . . . . . . . . . . . . . . . . . . . Process 8 | . 1 . 2 . . . 3 . . . . . . . . . . . . . . . . . . . 2 . . . . . Report Inventory 9 | . . . 2 . . . 3 . . . . . . . . . 1 . . . . . . . . . 3 . . . . . Retrieve Matter 3 | . . . 2 . . . 1 . . . . . . . . . . . . . . . . . . . . . . . . . Retrieve Components 2 | . . . . . . . . . . . . . . . . . . . . . . . . . . . 1 . . . 1 . Scanalyzer 23 | . . . 11 . . . 4 . . . . . . . 2 . . . . . . . . . . . 6 . . . . . Insert Component 8 | . . . 6 . . . . . . . . . . . . . . . . . . . . . . . 2 . . . . . Analyze 8 | . . . 5 . . . . . . . . . . . . . . . . . . . . . . . 3 . . . . . Retrieve Study 7 | . . . . . . . 4 . . . . . . . 2 . . . . . . . . . . . 1 . . . . . Garrison Access Hacks 7 | . . . . . . . 1 . 1 . 1 . . . . . . . . . . . . . . . 3 . . . 1 . Unlock Access 4 | . . . . . . . 1 . 1 . 1 . . . . . . . . . . . . . . . 1 . . . . . Seal Access 3 | . . . . . . . . . . . . . . . . . . . . . . . . . . . 2 . . . 1 . Unauthorized Hacks 57 | . 10 . 12 . . . 11 . . . . . . . 3 . . . . . . 2 . . . . 12 . . . 4 3 Terminals 54 | . 8 . 11 . . . 11 . . . . . . . 3 . . . . . . 2 . . . . 12 . . . 4 3 Assimilate 9 | . . . . . . . 2 . . . . . . . 2 . . . . . . . . . . . 5 . . . . . Botnet 19 | . 3 . 5 . . . 3 . . . . . . . 1 . . . . . . 1 . . . . 2 . . . 1 3 Operators 3 | . 1 . 1 . . . 1 . . . . . . . . . . . . . . . . . . . . . . . . . Skim 23 | . 4 . 5 . . . 5 . . . . . . . . . . . . . . 1 . . . . 5 . . . 3 . Fabricators . | . . . . . . . . . . . . . . . . . . . . . . . . . . . . . . . . . Repair Stations . | . . . . . . . . . . . . . . . . . . . . . . . . . . . . . . . . . Recycling Units 3 | . 2 . 1 . . . . . . . . . . . . . . . . . . . . . . . . . . . . . Tunnel 3 | . 2 . 1 . . . . . . . . . . . . . . . . . . . . . . . . . . . . . Scanalyzers . | . . . . . . . . . . . . . . . . . . . . . . . . . . . . . . . . . Garrison Access . | . . . . . . . . . . . . . . . . . . . . . . . . . . . . . . . . . Data Cores Recovered . | . . . . . . . . . . . . . . . . . . . . . . . . . . . . . . . . . Used . | . . . . . . . . . . . . . . . . . . . . . . . . . . . . . . . . . Hacking Detections 81 | . 7 . 16 . . . 12 2 1 1 2 2 2 . 6 . 2 . . . . 5 . . . . 9 . . 1 5 8 Full Trace Events 2 | . . . . . . . . . . . . . 1 . . . . . . . . . . . . . . . . 1 . . Feedback Events . | . . . . . . . . . . . . . . . . . . . . . . . . . . . . . . . . . Feedback Blocked . | . . . . . . . . . . . . . . . . . . . . . . . . . . . . . . . . . Robot Schematics Acquired 5 | . . . . . . . . . . . . . . . . . . . . 5 . . . . . . . . . . . . Robots Built . | . . . . . . . . . . . . . . . . . . . . . . . . . . . . . . . . . Authchips . | . . . . . . . . . . . . . . . . . . . . . . . . . . . . . . . . . Time . | . . . . . . . . . . . . . . . . . . . . . . . . . . . . . . . . . Total Robot Build Rating . | . . . . . . . . . . . . . . . . . . . . . . . . . . . . . . . . . Part Schematics Acquired 19 | . . . 5 . . . . . . . . . . . . . . . . 12 . . . . . . 2 . . . . . Parts Built 2 | . . . . . . . . . . . . . . . . . . . . . . 2 . . . . . . . . . . Authchips . | . . . . . . . . . . . . . . . . . . . . . . . . . . . . . . . . . Time 106 | . . . . . . . . . . . . . . . . . . . . . . 106 . . . . . . . . . . Total Part Build Rating 12 | . . . . . . . . . . . . . . . . . . . . . . 12 . . . . . . . . . . Part Studies Acquired 7 | . . . . . . . 4 . . . . . . . 2 . . . . . . . . . . . 1 . . . . . Parts Repaired 9 | . . . 2 . . . 1 . . . . . . . 2 . . . . . . 3 . . . . 1 . . . . . Time 393 | . . . 77 . . . 38 . . . . . . . 106 . . . . . . 150 . . . . 22 . . . . . Parts Recycled 1 | . . . 1 . . . . . . . . . . . . . . . . . . . . . . . . . . . . . Recycled Matter 902 | . 251 . 500 . . . 151 . . . . . . . . . . . . . . . . . . . . . . . . . Retrieved Matter 583 | . . . 583 . . . . . . . . . . . . . . . . . . . . . . . . . . . . . Retrieved Components 19 | . . . . . . . . . . . . . . . . . . . . . . . . . . . 9 . . . 10 . Parts Scanalyzed 7 | . . . 5 . . . . . . . . . . . . . . . . . . . . . . . 2 . . . . . Part Schematics Acquired 7 | . . . 5 . . . . . . . . . . . . . . . . . . . . . . . 2 . . . . . Parts Damaged . | . . . . . . . . . . . . . . . . . . . . . . . . . . . . . . . . . Bothacking | -11 -10 -10 -9 -9 -9 -8 -8 -8 -8 -8 -7 -7 -7 -7 -6 -6 -6 -6 -6 -6 -5 -5 -5 -5 -5 -4 -4 -3 -3 -2 -1 -1 ------------ Run | Yrd Mat Min Mat Min Exi Min Mat Gar Mat Gar Fac Gar Fac DSF Fac Was Fac Low Low Dat Pro Fac Upp Upp War Pro Fac Res DSF Res Acc Com Used RIF Installer . | . . . . . . . . . . . . . . . . . . . . . . . . . . . . . . . . . Robots Hacked . | . . . . . . . . . . . . . . . . . . . . . . . . . . . . . . . . . Non-combat . | . . . . . . . . . . . . . . . . . . . . . . . . . . . . . . . . . Combat . | . . . . . . . . . . . . . . . . . . . . . . . . . . . . . . . . . Robot Hacks Applied . | . . . . . . . . . . . . . . . . . . . . . . . . . . . . . . . . . Relay Couplers Released 59 | . . . . . . . . 24 . 21 . 7 . . 3 . . . . . . . . . . . . . . 4 . . Machine Destruction 59 | . . . . . . . . 24 . 21 . 7 . . 3 . . . . . . . . . . . . . . 4 . . Fabnet Peak Effective % . | . . . . . . . . . . . . . . . . . . . . . . . . . . . . . . . . . Robots Rewired 15 | . . . . . . . . 3 . 6 . 1 . . . . . . . . . . . . 5 . . . . . . . Allies Hacked . | . . . . . . . . . . . . . . . . . . . . . . . . . . . . . . . . . Hacks Repelled . | . . . . . . . . . . . . . . . . . . . . . . . . . . . . . . . . . Allies | -11 -10 -10 -9 -9 -9 -8 -8 -8 -8 -8 -7 -7 -7 -7 -6 -6 -6 -6 -6 -6 -5 -5 -5 -5 -5 -4 -4 -3 -3 -2 -1 -1 -------- Run | Yrd Mat Min Mat Min Exi Min Mat Gar Mat Gar Fac Gar Fac DSF Fac Was Fac Low Low Dat Pro Fac Upp Upp War Pro Fac Res DSF Res Acc Com Total Allies 23 | . . . . . . . 1 3 . 6 . 3 . . 2 . . . . . . . . . 5 . 3 . . . . . Largest Group 5 | . . . . . . . 1 2 3 5 5 3 . . 1 . . . . . . . . . 5 2 2 1 1 . . . Highest-Rated Group 267 | . . . . . . . 10 32 48 102 102 83 . . 26 . . . . . . . . . 267 113 36 26 26 . . . Highest-Rated Ally 64 | . . . . . . . 10 16 16 24 24 31 . . 26 . . . . . . . . . 64 64 26 26 26 . . . Initial Warlord ECA Mod 44 | . . . . . . . . . 13 13 22 22 29 29 38 38 38 38 38 38 37 37 37 37 37 36 36 35 35 44 43 43 Total Orders 10 | . . . . . . . . . . . . . . . 2 . . . . . . . . . . . 4 2 2 . . . STAY 4 | . . . . . . . . . . . . . . . 1 . . . . . . . . . . . 2 . 1 . . . FOLLOW 3 | . . . . . . . . . . . . . . . 1 . . . . . . . . . . . 1 . 1 . . . EXPLORE 1 | . . . . . . . . . . . . . . . . . . . . . . . . . . . . 1 . . . . RETURN 2 | . . . . . . . . . . . . . . . . . . . . . . . . . . . 1 1 . . . . Ally Attacks 105 | . . . . . . . . . 8 20 19 31 . . . . . . . . . . . . 27 . . . . . . . Total Damage 2320 | . . . . . . . . . 93 217 378 420 . . . . . . . . . . . . 1212 . . . . . . . Kills 16 | . . . . . . . . . 1 3 3 3 . . . . . . . . . . . . 6 . . . . . . . Allies Corrupted . | . . . . . . . . . . . . . . . . . . . . . . . . . . . . . . . . . Allies Melted 5 | . . . . . . . . . . . . . . . 1 . . . . . . . . . 2 . . . . 2 . . Intel | -11 -10 -10 -9 -9 -9 -8 -8 -8 -8 -8 -7 -7 -7 -7 -6 -6 -6 -6 -6 -6 -5 -5 -5 -5 -5 -4 -4 -3 -3 -2 -1 -1 ------- Run | Yrd Mat Min Mat Min Exi Min Mat Gar Mat Gar Fac Gar Fac DSF Fac Was Fac Low Low Dat Pro Fac Upp Upp War Pro Fac Res DSF Res Acc Com Active Infowar (turns) 30617 | 44 395 . 3274 749 635 933 2410 819 1 588 229 . . . 1874 375 332 629 791 77 1458 1012 1669 1066 1159 588 1220 130 318 1725 1459 4658 Optics 2 | . . . . . . . . . . . . . . . . 1 . . . . . . . . . . . . . 1 . . Sensors 12521 | . . . . . . . . . . . . . . . . . . 613 763 77 1458 1012 1669 1060 1159 546 954 130 318 1268 1459 35 Terrain 13061 | . . . . . . . . . . . . . . . . . 14 599 791 77 1458 619 1289 1061 1158 322 917 . . . 1458 3298 Seismic 9195 | 44 395 . 3274 749 635 933 2346 819 . . . . . . . . . . . . . . . . . . . . . . . . Decoding 5483 | . . . . . . . . . . . . . . . . . . . . . . . . . . . . 103 318 1725 1459 1878 Machine Analysis 2581 | . . . . . . . . . . . . . . . 1874 375 332 . . . . . . . . . . . . . . . Cloaking 5573 | . . . . . . . 64 . . . 136 . . . . . . 44 33 . 488 348 853 1008 . 119 310 . 109 14 1113 934 Jamming 7234 | . . . . . . . . . 1 588 126 . . . 1848 161 53 . . . 2 . . . . 61 351 . . . 1110 2933 ECM 1 | . . . . . . . . . . . . . . . . . . . . . . . 1 . . . . . . . . . Robot Analysis Total 5 | . . . 3 . . . 1 . . . . . . . . . . . . . . . . . . . . . . . . 1 Derelict Logs Recovered 14 | . . 2 . 3 . . . . . . . . . . . . . 1 1 . 2 . 1 3 . 1 . . . . . . Drone Launches 2 | . . . . . . . . . . . . . . . . . . . . . . . . . . . 1 1 . . . . Drone Recoveries 2 | . . . . . . . . . . . . . . . . . . . . . . . . . . . 1 1 . . . . Decoded 0b10 Intel 86 | . . . . . . . . . . . . . . . . . . . . . . . . . . . . . 4 11 38 33 Garrisons 3 | . . . . . . . . . . . . . . . . . . . . . . . . . . . . . . 1 2 . Patrols 42 | . . . . . . . . . . . . . . . . . . . . . . . . . . . . . 3 4 18 17 Reinforcements 5 | . . . . . . . . . . . . . . . . . . . . . . . . . . . . . 1 2 1 1 Guards 36 | . . . . . . . . . . . . . . . . . . . . . . . . . . . . . . 4 17 15 Exploration | -11 -10 -10 -9 -9 -9 -8 -8 -8 -8 -8 -7 -7 -7 -7 -6 -6 -6 -6 -6 -6 -5 -5 -5 -5 -5 -4 -4 -3 -3 -2 -1 -1 ------------- Run | Yrd Mat Min Mat Min Exi Min Mat Gar Mat Gar Fac Gar Fac DSF Fac Was Fac Low Low Dat Pro Fac Upp Upp War Pro Fac Res DSF Res Acc Com Turns Passed 37587 | 112 1959 990 3276 749 635 933 2647 1457 143 1526 492 1336 81 294 1886 375 332 630 791 77 1458 1012 1737 1161 1160 754 1284 130 318 1725 1459 4668 Spaces Moved 20328 | 53 939 542 1251 448 393 533 1340 604 66 665 266 574 61 106 1060 283 258 566 787 85 849 435 1003 936 862 540 798 100 135 957 785 2048 Core 21 | 3 . . . . . . . . . . . . . . . . . . . . . . . . . . . . . . . 18 Treads 10611 | 50 939 542 1251 448 393 533 1340 604 66 605 . 44 . 9 . . . . . . . . . . . . . . 15 957 785 2030 Legs . | . . . . . . . . . . . . . . . . . . . . . . . . . . . . . . . . . Wheels 9696 | . . . . . . . . . . 60 266 530 61 97 1060 283 258 566 787 85 849 435 1003 936 862 540 798 100 120 . . . Hover . | . . . . . . . . . . . . . . . . . . . . . . . . . . . . . . . . . Flight . | . . . . . . . . . . . . . . . . . . . . . . . . . . . . . . . . . Fastest Speed 50 | 50 160 160 160 160 160 155 155 161 165 120 120 120 120 120 106 91 91 91 91 91 91 112 96 96 106 106 104 107 107 145 145 50 Average Speed 139 | 153 160 160 198 160 160 156 159 163 192 163 120 141 120 137 120 91 91 91 91 91 105 112 111 99 106 106 109 107 131 153 150 185 Slowest Speed 640 | 160 160 160 640 160 160 160 236 165 245 250 120 480 120 240 145 91 91 91 106 91 106 112 112 112 106 106 125 107 160 240 225 241 Overloaded Moves . | . . . . . . . . . . . . . . . . . . . . . . . . . . . . . . . . . Propulsion Burnouts . | . . . . . . . . . . . . . . . . . . . . . . . . . . . . . . . . . Robots Hopped . | . . . . . . . . . . . . . . . . . . . . . . . . . . . . . . . . . Potential Cave-ins 6 | . . . . . . . . . . . . . . . 2 . . . . . . 2 . . 2 . . . . . . . Cave-ins Triggered 1 | . . . . . . . . . . . . . . . . . . . . . . . 1 . . . . . . . . . Exploration Rate (%) 58 | 4 98 90 97 90 87 84 82 73 11 75 8 62 3 76 26 84 10 76 86 69 90 14 83 92 87 80 17 4 74 35 21 53 Regions Visited 32 Branch Regions 13 Pre-discovered Areas 13 | . 2 2 3 . 1 . 1 . . . . . . . . . . 2 . 1 . . . . . . 1 . . . . . Known Exits Taken 21 | . . . 1 . 1 1 1 . 1 . 1 . 1 . . . 1 1 1 1 1 1 1 1 1 1 1 1 . 1 1 . Unknown Exits Taken 4 | 1 1 1 . 1 . . . . . . . . . . . . . . . . . . . . . . . . . . . . Scrap Searched 30 | . . 3 . 1 . 3 . . . . . . . . . . . 7 5 . 4 . 2 4 . 1 . . . . . . Spaces Dug 281 | . 8 . 6 . . . 22 9 . 1 9 8 3 4 21 . 14 1 20 . 28 11 14 6 5 3 16 . 13 8 29 22 Terrain Destroyed 1226 | . 10 . 40 . . 7 77 153 . 141 9 120 3 30 111 8 22 17 23 . 35 20 65 25 11 3 22 . 49 18 52 155 Melee 107 | . . . 2 . . . 14 4 . 1 9 7 3 4 8 . 7 . 3 . 4 8 8 1 4 3 9 . . 8 . . Projectile 346 | . 10 . 6 . . . 19 27 . 3 . 7 . 3 44 8 15 2 7 . 14 12 10 24 7 . 13 . 11 10 52 42 AOE 769 | . . . 32 . . 7 44 122 . 137 . 106 . 23 59 . . 15 13 . 17 . 47 . . . . . 38 . . 109 Terrain Rammed . | . . . . . . . . . . . . . . . . . . . . . . . . . . . . . . . . . Walls Destroyed . | . . . . . . . . . . . . . . . . . . . . . . . . . . . . . . . . . Machines Disabled . | . . . . . . . . . . . . . . . . . . . . . . . . . . . . . . . . . Actions | -11 -10 -10 -9 -9 -9 -8 -8 -8 -8 -8 -7 -7 -7 -7 -6 -6 -6 -6 -6 -6 -5 -5 -5 -5 -5 -4 -4 -3 -3 -2 -1 -1 --------- Run | Yrd Mat Min Mat Min Exi Min Mat Gar Mat Gar Fac Gar Fac DSF Fac Was Fac Low Low Dat Pro Fac Upp Upp War Pro Fac Res DSF Res Acc Com Total 26982 | 70 1180 629 1849 480 401 596 1703 847 80 923 397 881 65 183 1526 338 319 658 834 84 1386 928 1559 1108 1063 663 1111 124 244 1126 989 2638 Wait 3959 | 2 86 50 405 30 4 37 154 66 . 52 95 94 . 10 327 7 27 62 28 . 508 458 487 100 77 56 183 11 33 41 132 337 Move 20299 | 52 938 541 1250 447 392 532 1340 603 66 664 266 573 60 105 1060 282 257 565 786 84 848 434 1002 935 861 539 797 99 134 956 784 2047 Hop . | . . . . . . . . . . . . . . . . . . . . . . . . . . . . . . . . . Pick Up 224 | 3 15 5 24 1 2 1 25 3 3 4 2 8 1 6 17 5 1 3 . . 5 5 6 7 14 6 12 3 11 9 1 16 Fast Attach 172 | 7 3 2 12 . . 1 9 1 2 9 1 5 . 4 7 4 . . . . 2 2 9 4 9 3 23 3 9 21 1 19 Attach 104 | . 2 1 6 . . 1 9 5 . 2 2 2 . 3 8 2 1 2 . . . 2 2 3 3 12 5 3 7 8 2 11 Detach 32 | . 2 . . . . . 1 1 . . . 1 . 1 . . . . . . . . . . 1 5 2 1 2 8 1 6 Swap 307 | 1 24 5 34 1 1 2 18 16 2 23 4 33 . 6 12 2 5 9 6 . 1 6 8 8 8 5 17 . 7 15 6 22 Drop 313 | . 8 7 21 1 2 3 29 3 5 8 2 16 1 11 21 8 1 3 . . 3 1 10 13 23 7 19 4 21 28 1 33 Fire 1062 | 5 102 18 90 . . 19 95 106 2 60 4 89 . 25 60 28 20 10 8 . 15 12 21 33 20 . 16 . 20 11 61 112 Melee 291 | . . . 7 . . . 23 8 . 31 21 43 3 12 13 . 7 4 6 . 4 8 14 5 4 30 37 . . 11 . . Ram . | . . . . . . . . . . . . . . . . . . . . . . . . . . . . . . . . . Kick . | . . . . . . . . . . . . . . . . . . . . . . . . . . . . . . . . . Crush 1 | . . . . . . . . . . . . . . . 1 . . . . . . . . . . . . . . . . . Escape Stasis 19 | . . . . . . . . . . . . 16 . . . . . . . . . . . . . . . . . . . 3 Rewire 149 | . . . . . . . . 35 . 70 . 1 . . . . . . . . . . . . 43 . . . . . . . Trap . | . . . . . . . . . . . . . . . . . . . . . . . . . . . . . . . . . Miscellaneous 50 | . . . . . . . . . . . . . . . . . . . . . . . . . . . . . . 18 . 32 Route ------- -11/Scrapyard -10/Materials (discovered 4 exits: *Mat x3 / *Min) -10/Mines (discovered 2 exits: *Mat x2) -9/Materials (discovered 4 exits: *Mat x3 / *Min) -9/Mines (discovered 4 exits: *Mat x2 / *Exi / [*Zio]) -9/Exiles (discovered 2 exits: *Min x2) -8/Mines -8/Materials (discovered 6 exits: *Fac x3 / *Sto x2 / Gar) -8/Garrison (discovered 4 exits: *Mat x4) -8/Materials -8/Garrison (discovered 3 exits: *Fac x3) -7/Factory (discovered 2 exits: Low / Gar) -7/Garrison -7/Factory -7/DSF -6/Factory (discovered 2 exits: *Fac x2) -6/Waste -6/Factory (discovered 2 exits: *Fac / *Low) -6/Lower Caves -6/Lower Caves (discovered 2 exits: *Fac / *Dat) -6/Data Miner -5/Proximity Caves -5/Factory (discovered 4 exits: Fac / *Upp / Ext x2) -5/Upper Caves -5/Upper Caves (discovered 2 exits: *Fac / *War) -5/Warlord -4/Proximity Caves -4/Factory (discovered 3 exits: *Res x2 / *Upp) -3/Research (discovered 3 exits: Arm / Tes / DSF) -3/DSF -2/Research (discovered 2 exits: *Acc / *Qua) -1/Access -1/Command To Epsilon Eridani History --------- Turn | Location | Event 91 | -11/Scrapyard | Discovered new exit (range 12) 113 | -11/Scrapyard | Entered Materials 308 | -10/Materials | Build established: Mutant 708 | -10/Materials | Discovered new exit (range 13) 1054 | -10/Materials | Discovered new exit (range 5) 1513 | -10/Materials | Derelicts attacked the area 1619 | -10/Materials | Discovered new exit (range 6) 1979 | -10/Materials | Discovered new exit (range 14) 2072 | -10/Materials | Entered Mines 2150 | -10/Mines | Found a hidden stash of uninstalled traps 2161 | -10/Mines | Learned location of Storage (-8) 2198 | -10/Mines | Discovered new exit (range 9) 2296 | -10/Mines | Discovered new exit (range 8) 2314 | -10/Mines | Met a Derelict shopkeep closing up shop 3062 | -10/Mines | Entered Materials 3062 | -9/Materials | Evolved 2 slots: Propulsion x1, Utility x1 3063 | -9/Materials | Identified exit to Mines 3359 | -9/Materials | Build established: Scavenger-Mutant 3495 | -9/Materials | Discovered new exit (range 14) 3760 | -9/Materials | Learned 2 Storage zone layouts 3831 | -9/Materials | Learned Storage trap positions 3870 | -9/Materials | Learned 2 Storage zone layouts 3911 | -9/Materials | Destroyed 8 combat bots 4196 | -9/Materials | Central database locked down 4788 | -9/Materials | Repaired Lgt. Armor Plating 4840 | -9/Materials | Repaired Hvy. Ion Engine 5045 | -9/Materials | Discovered new exit (range 12) 5949 | -9/Materials | Discovered new exit (range 12) 6338 | -9/Materials | Entered Mines 6339 | -9/Mines | Identified exit to Materials 6359 | -9/Mines | Found DCF Scrap (11 items) 6389 | -9/Mines | Learned Materials emergency access door positions 6393 | -9/Mines | Learned Materials terminal intel 6627 | -9/Mines | A Derelict revealed a hidden shortcut to a safe place 6675 | -9/Mines | Received a Rocket Launcher from a helpful Derelict 7080 | -9/Mines | Deemed a non-threat by the Exiles lab entrance 7080 | -9/Mines | Discovered new exit (range 5) 7087 | -9/Mines | Entered Exiles 7088 | -9/Exiles | Identified exit to Mines 7131 | -9/Exiles | Met 8R-AWN 7155 | -9/Exiles | Met EX-HEX 7196 | -9/Exiles | Met EX-BIN 7215 | -9/Exiles | Aligned with FarCom system 7217 | -9/Exiles | Given EX-Vault access code 7257 | -9/Exiles | Opened EX-Vault 7269 | -9/Exiles | Found Cloak of Protection 7322 | -9/Exiles | Warned to stay clear of 0b10 Research branches 7370 | -9/Exiles | Met EX-DEC 7380 | -9/Exiles | Learned location of Zion (-7) 7445 | -9/Exiles | Visited The Gauntlet 7708 | -9/Exiles | Discovered exit to Mines (range 10) 7722 | -9/Exiles | Left Exiles lab with Cloak of Protection 7722 | -9/Exiles | Entered Mines 8023 | -8/Mines | Found a Scrap Suit stashed away for nefarious purposes 8629 | -8/Mines | Discovered exit to Materials (range 11) 8655 | -8/Mines | Entered Materials 8655 | -8/Materials | Evolved 2 slots: Propulsion x1, Weapon x1 8656 | -8/Materials | Identified exit to Storage 8658 | -8/Materials | Loaded intel: 12 terminal locations 8819 | -8/Materials | Garrison activated, responded to threat 8964 | -8/Materials | Build established: Scavenger-Skirmisher 9249 | -8/Materials | Repaired Adv. Treads 9321 | -8/Materials | Discovered new exit (range 3) 9492 | -8/Materials | Discovered exit to Storage (range 8) 9566 | -8/Materials | Lost 3 parts (1n2u) 9856 | -8/Materials | Discovered new exit (range 7) 9859 | -8/Materials | Learned Factory stockpile data 10023 | -8/Materials | Learned 4 Factory zone layouts 10026 | -8/Materials | Discovered new exit (range 16) 10036 | -8/Materials | Learned Factory emergency access door positions 10058 | -8/Materials | Learned location of Lower Caves (-6) 10092 | -8/Materials | Learned location of 2 exits from Lower Caves 10137 | -8/Materials | Learned 4 Factory zone layouts 10963 | -8/Materials | Build established: Scavenger-Mutant 11302 | -8/Materials | Identified exit to Garrison 11302 | -8/Materials | Entered Garrison 11362 | -8/Garrison | Triggered checkpoint 11426 | -8/Garrison | Discovered new exit (range 60) 11426 | -8/Garrison | Discovered new exit (range 30) 11426 | -8/Garrison | Discovered new exit (range 63) 11426 | -8/Garrison | Discovered new exit (range 73) 11491 | -8/Garrison | Triggered checkpoint 11502 | -8/Garrison | Triggered checkpoint 11625 | -8/Garrison | Build established: Scavenger-Skirmisher 11672 | -8/Garrison | Triggered checkpoint 11735 | -8/Garrison | Garrison Relay disabled 12106 | -8/Garrison | Triggered checkpoint 12118 | -8/Garrison | Triggered checkpoint 12212 | -8/Garrison | Garrison Relay disabled 12282 | -8/Garrison | Triggered checkpoint 12490 | -8/Garrison | Phase Generator disabled 12599 | -8/Garrison | Triggered checkpoint 12684 | -8/Garrison | Triggered checkpoint 12759 | -8/Garrison | Entered Materials 12759 | -8/Materials | Accompanied by 3 allies 12835 | -8/Materials | Garrison activated, responded to threat 12901 | -8/Materials | Identified exit to Garrison 12902 | -8/Materials | Entered Garrison 12902 | -8/Garrison | Accompanied by 3 allies 12958 | -8/Garrison | Triggered checkpoint 13080 | -8/Garrison | Garrison Relay disabled 13092 | -8/Garrison | Garrison Relay disabled 13172 | -8/Garrison | Triggered checkpoint 13262 | -8/Garrison | Phase Generator disabled 13263 | -8/Garrison | Core integrity fell below 50% 13267 | -8/Garrison | Spotted B-75 Beast 13478 | -8/Garrison | Triggered checkpoint 13491 | -8/Garrison | Triggered checkpoint 13618 | -8/Garrison | Triggered checkpoint 13689 | -8/Garrison | Garrison Relay disabled 13722 | -8/Garrison | Discovered new exit (range 10) 13880 | -8/Garrison | Build established: Scavenger-Mutant 13892 | -8/Garrison | Garrison Relay disabled 13943 | -8/Garrison | Discovered new exit (range 11) 14034 | -8/Garrison | Triggered checkpoint 14165 | -8/Garrison | Garrison Relay disabled 14165 | -8/Garrison | Triggered checkpoint 14410 | -8/Garrison | Triggered checkpoint 14410 | -8/Garrison | Discovered new exit (range 6) 14428 | -8/Garrison | Entered Factory 14428 | -7/Factory | Accompanied by 5 allies 14428 | -7/Factory | Evolved 2 slots: Utility x1, Weapon x1 14429 | -7/Factory | Identified exit to Lower Caves 14560 | -7/Factory | Lost 3 allies 14828 | -7/Factory | First assault squad dispatched 14920 | -7/Factory | Identified exit to Garrison 14920 | -7/Factory | Entered Garrison 15070 | -7/Garrison | Triggered checkpoint 15155 | -7/Garrison | Garrison Relay disabled 15276 | -7/Garrison | Build established: Scavenger-Tank 15365 | -7/Garrison | Rescued a captive Derelict 15366 | -7/Garrison | Rescued a captive Derelict 15495 | -7/Garrison | Triggered checkpoint 15506 | -7/Garrison | Triggered checkpoint 15508 | -7/Garrison | Triggered checkpoint 15559 | -7/Garrison | Destroyed 8 combat bots 15592 | -7/Garrison | Triggered checkpoint 15976 | -7/Garrison | Triggered checkpoint 16058 | -7/Garrison | Garrison Relay disabled 16123 | -7/Garrison | Phase Generator disabled 16193 | -7/Garrison | Discovered new exit (range 11) 16256 | -7/Garrison | Entered Factory 16337 | -7/Factory | Identified exit to DSF 16337 | -7/Factory | Entered DSF 16367 | -7/DSF | Additional patrols routed to DSF 16511 | -7/DSF | Discovered new exit (range 16) 16631 | -7/DSF | Sterilization system engaged 16631 | -7/DSF | Entered Factory 16631 | -6/Factory | Evolved 2 slots: Utility x2 17471 | -6/Factory | Repaired Railgun 17754 | -6/Factory | Repaired Arm. Huge Wheel+? 17818 | -6/Factory | Discovered new exit (range 7) 17826 | -6/Factory | Identified exit to Factory 17966 | -6/Factory | Watched by a mysterious "MATRIX" hacker. 18058 | -6/Factory | Discovered exit to Factory (range 16) 18356 | -6/Factory | Cargo convoy interrupted 18381 | -6/Factory | First assault squad dispatched 18517 | -6/Factory | Sucked down chute 18517 | -6/Factory | Entered Waste 18528 | -6/Waste | Spotted C-40 Crusher 18611 | -6/Waste | Spotted C-40 Crusher 18612 | -6/Waste | Destroyed C-40 Crusher 18650 | -6/Waste | Destroyed C-40 Crusher 18675 | -6/Waste | Found Prototype Device 18675 | -6/Waste | Identified System Purifier 18686 | -6/Waste | Spotted C-40 Crusher 18732 | -6/Waste | Spotted C-40 Crusher 18775 | -6/Waste | Build established: Scavenger-Skirmisher 18810 | -6/Waste | Spotted C-40 Crusher 18835 | -6/Waste | Spotted C-40 Crusher 18872 | -6/Waste | Discovered new exit (range 12) 18887 | -6/Waste | Found Prototype Processor 18887 | -6/Waste | Identified Spectral Analyzer 18891 | -6/Waste | Identified exit to Factory 18892 | -6/Waste | Entered Factory 19143 | -6/Factory | Discovered new exit (range 9) 19153 | -6/Factory | Identified exit to Lower Caves 19161 | -6/Factory | Discovered exit to Factory (range 12) 19224 | -6/Factory | Entered Lower Caves 19225 | -6/Lower Caves | Identified exit to Lower Caves 19350 | -6/Lower Caves | Met a Warlord Commander 19351 | -6/Lower Caves | Learned location of Warlord (-5) 19352 | -6/Lower Caves | Warlord Commander delivered Encrypted Comm Array 19355 | -6/Lower Caves | Found Encrypted Comm Array 19854 | -6/Lower Caves | Entered another Lower Caves area 19855 | -6/Lower Caves | Identified exit to Data Miner 19917 | -6/Lower Caves | Discovered exit to Factory (range 10) 20123 | -6/Lower Caves | Learned 12 Factory zone layouts 20291 | -6/Lower Caves | Build established: Scavenger-Assassin 20645 | -6/Lower Caves | Entered Data Miner 20645 | -6/Data Miner | Discovered new exit (range 6) 20663 | -6/Data Miner | Met Data Miner 20680 | -6/Data Miner | Learned location of Section 7 (-2) 20680 | -6/Data Miner | Acquired the access code to Warlord's prototype stash 20703 | -6/Data Miner | Received God Mode back door access code from Data Miner 20721 | -6/Data Miner | Identified exit to Proximity Caves 20722 | -6/Data Miner | Entered Proximity Caves 21288 | -5/Proximity Caves | Learned Factory interactive machine intel 21984 | -5/Proximity Caves | Discovered exit to Factory (range 14) 22180 | -5/Proximity Caves | Entered Factory 22180 | -5/Factory | Evolved 2 slots: Power x1, Propulsion x1 22181 | -5/Factory | Identified exit to Extension 22182 | -5/Factory | Identified exit to Factory 22183 | -5/Factory | Loaded intel: 55 interactive machine locations 22295 | -5/Factory | Repaired Arm. Huge Wheel+ 22358 | -5/Factory | Repaired Centrium Wheel 22404 | -5/Factory | Repaired Imp. Medium Armor Plating 22596 | -5/Factory | Fabricated Imp. Coolant Injector (x2) 23184 | -5/Factory | Discovered new exit (range 7) 23191 | -5/Factory | Identified exit to Upper Caves 23192 | -5/Factory | Entered Upper Caves 24287 | -5/Upper Caves | Crushed by falling debris 24287 | -5/Upper Caves | System corruption reached 10% 24493 | -5/Upper Caves | Learned 8 Factory zone layouts 24882 | -5/Upper Caves | Build established: Derelict-Assassin 24916 | -5/Upper Caves | Discovered new exit (range 10) 24928 | -5/Upper Caves | Identified exit to Upper Caves 24929 | -5/Upper Caves | Entered another Upper Caves area 24983 | -5/Upper Caves | Learned Factory interactive machine intel 25090 | -5/Upper Caves | Learned Factory emergency access door positions 25106 | -5/Upper Caves | Discovered exit to Factory (range 12) 25254 | -5/Upper Caves | Learned Factory terminal intel 25346 | -5/Upper Caves | Spotted B-75 Beast 26068 | -5/Upper Caves | Discovered new exit (range 8) 26086 | -5/Upper Caves | Identified exit to Warlord 26090 | -5/Upper Caves | Entered Warlord 26135 | -5/Warlord | System corruption cleaned by Quarantine Array 26356 | -5/Warlord | Opened Warlord's prototype stash 26359 | -5/Warlord | Found Prototype Reactor 26365 | -5/Warlord | Found Prototype Device 26365 | -5/Warlord | Identified Exp. Focal Shield 26406 | -5/Warlord | Found Prototype Special Weapon 26407 | -5/Warlord | Identified RU-N14's Throwing Claymores v3 26410 | -5/Warlord | Found RU-N14's Throwing Claymores v3 26416 | -5/Warlord | Found RU-N14's Throwing Claymores v3 26655 | -5/Warlord | Warlord's base attacked by MAIN.C 26667 | -5/Warlord | Found Prototype Energy Cannon 26669 | -5/Warlord | Found Prototype Energy Cannon 26722 | -5/Warlord | Found Prototype Device 26722 | -5/Warlord | Identified Minesniffer Drone Bay 26728 | -5/Warlord | Found Minesniffer Drone Bay 26904 | -5/Warlord | Met Warlord 27005 | -5/Warlord | Warlord forces counterattacked 27054 | -5/Warlord | Spotted Executioner 27082 | -5/Warlord | Allies destroyed Executioner 27107 | -5/Warlord | Spotted Striker 27146 | -5/Warlord | Lost 16 allies 27155 | -5/Warlord | Spotted B-75 Beast 27160 | -5/Warlord | Spotted B-86 Titan 27214 | -5/Warlord | Discovered new exit (range 12) 27224 | -5/Warlord | Identified exit to Proximity Caves 27242 | -5/Warlord | Lost 13 allies 27250 | -5/Warlord | Entered Proximity Caves 27250 | -4/Proximity Caves | Accompanied by 2 allies 27372 | -4/Proximity Caves | Learned 8 Research zone layouts 27461 | -4/Proximity Caves | P-70 Sage assimilated allied Archangel 6a 27478 | -4/Proximity Caves | Spotted B-86 Titan 27735 | -4/Proximity Caves | Identified Vortex Chain Reactor 27887 | -4/Proximity Caves | Attracted the attention of an 0b10 checkpoint 27989 | -4/Proximity Caves | Discovered exit to Factory (range 11) 28004 | -4/Proximity Caves | Entered Factory 28004 | -4/Factory | Evolved 2 slots: Propulsion x1, Utility x1 28005 | -4/Factory | Identified exit to Upper Caves 28007 | -4/Factory | Loaded intel: 54 interactive machine locations 28008 | -4/Factory | Loaded intel: 26 terminal locations 28138 | -4/Factory | Repaired Arm. Huge Wheel+ 28309 | -4/Factory | Build established: Hacker-Assassin 28410 | -4/Factory | Discovered new exit (range 7) 28478 | -4/Factory | Identified exit to Garrison 28725 | -4/Factory | Found Prototype Hackware 28725 | -4/Factory | Identified Exp. System Shield 28844 | -4/Factory | Lost 3 parts (1p1n1w) 28908 | -4/Factory | Central database locked down 29063 | -4/Factory | Learned 12 Factory zone layouts 29084 | -4/Factory | Discovered new exit (range 16) 29151 | -4/Factory | Learned Armory fabricator intel 29198 | -4/Factory | Learned Factory emergency access door positions 29229 | -4/Factory | Learned 4 Proximity Caves zone layouts 29271 | -4/Factory | Learned 2 Upper Caves zone layouts 29277 | -4/Factory | Identified Vortex Cannon (x2) 29287 | -4/Factory | Identified exit to Research 29288 | -4/Factory | Entered Research 29288 | -3/Research | Accompanied by 1 ally 29288 | -3/Research | Evolved 2 slots: Utility x2 29289 | -3/Research | Identified exit to Armory 29290 | -3/Research | Identified exit to Testing 29418 | -3/Research | Identified exit to DSF 29418 | -3/Research | Entered DSF 29418 | -3/DSF | Accompanied by 1 ally 29437 | -3/DSF | Additional patrols routed to DSF 29519 | -3/DSF | Discovered new exit (range 13) 29529 | -3/DSF | Found Prototype Device 29529 | -3/DSF | Identified Exp. Actuator Array 29632 | -3/DSF | Sterilization system engaged 29652 | -3/DSF | Ambient heat levels rising (+10) 29667 | -3/DSF | Ambient heat levels rising (+10) 29682 | -3/DSF | Ambient heat levels rising (+10) 29685 | -3/DSF | Identified exit to Research 29697 | -3/DSF | Ambient heat levels rising (+10) 29712 | -3/DSF | Ambient heat levels rising (+10) 29727 | -3/DSF | Ambient heat levels rising (+10) 29736 | -3/DSF | Entered Research 29736 | -2/Research | Warlord forces began assault on 0b10 29736 | -2/Research | Evolved 2 slots: Power x1, Utility x1 29761 | -2/Research | Distinguished unit "Cat Herders" dispatched to help 29761 | -2/Research | Distinguished unit "Knights of the Pentagonal Table" dispatched to help 29784 | -2/Research | Found Prototype Processor 29784 | -2/Research | Identified Exp. Signal Interpreter 29846 | -2/Research | Research machine network offline 29863 | -2/Research | Spotted B-90 Cyclops 29902 | -2/Research | Lost 7 allies 29937 | -2/Research | Discovered new exit (range 14) 29961 | -2/Research | Identified exit to Access 29988 | -2/Research | Met up with Warlord 30300 | -2/Research | Borebot progress halted 30356 | -2/Research | Discovered new exit (range 4) 30362 | -2/Research | Identified exit to Quarantine 30385 | -2/Research | Borebot progress halted 30610 | -2/Research | Borebot progress halted 30953 | -2/Research | Spotted Executioner 30973 | -2/Research | Found Prototype Processor 30973 | -2/Research | Identified Exp. Core Analyzer 30981 | -2/Research | Lost 5 allies 30981 | -2/Research | Found Prototype Device 30981 | -2/Research | Identified Adv. Kinecellerator 30987 | -2/Research | Spotted Executioner 30994 | -2/Research | Found Prototype Processor 30994 | -2/Research | Identified Exp. Targeting Computer 31028 | -2/Research | Lost 3 allies 31070 | -2/Research | Spotted Executioner 31073 | -2/Research | Spotted Striker 31095 | -2/Research | Destroyed Executioner 31109 | -2/Research | Destroyed Striker 31243 | -2/Research | Given Cave Seal Controls access code 31279 | -2/Research | Build established: Hacker-Tank 31461 | -2/Research | Entered Access 31461 | -1/Access | Evolved 2 slots: Utility x2 31653 | -1/Access | Identified exit to Command 31728 | -1/Access | Build established: Hacker-Skirmisher 31769 | -1/Access | Garrison activated, responded to threat 32920 | -1/Access | Entered Command 33242 | -1/Command | Build established: Hacker-Tank 33909 | -1/Command | Destroyed 7 combat bots 33931 | -1/Command | Lost 4 parts (3u1w) 34143 | -1/Command | Build established: Scavenger-Tank 34304 | -1/Command | Phase Generator disabled 34531 | -1/Command | Disengaged cave seal 34531 | -1/Command | Derelicts emerged from the dark tunnel 34531 | -1/Command | Welcomed Warlord to Command 34670 | -1/Command | First assault squad dispatched 35335 | -1/Command | Spotted B-99 Colossus 35529 | -1/Command | Discovered new exit (range 14) 35972 | -1/Command | Disengaged cave seal 35972 | -1/Command | Derelicts emerged from the dark tunnel 36331 | -1/Command | Spotted Combat Programmer 36334 | -1/Command | Spotted M Guard 36334 | -1/Command | Spotted M Guard 36335 | -1/Command | Spotted Combat Programmer 36353 | -1/Command | Warlord commented on Warlord statues 36416 | -1/Command | Lost 11 allies 36434 | -1/Command | All MAIN.C guards destroyed 37177 | -1/Command | Warlord destroyed during the assault 37208 | -1/Command | Lost 11 allies 37234 | -1/Command | Destroyed 11 combat bots 37441 | -1/Command | Found Unknown Launcher 37441 | -1/Command | Identified Fusion Bomb Launcher 37448 | -1/Command | Found Fusion Bomb Launcher 37453 | -1/Command | Found Fusion Bomb Launcher 37456 | -1/Command | Found Fusion Bomb Launcher 37545 | -1/Command | Spotted Striker 37545 | -1/Command | Spotted Alpha 7 37545 | -1/Command | Destroyed Striker 37545 | -1/Command | Spotted Alpha 7 37546 | -1/Command | Spotted Executioner 37546 | -1/Command | Spotted Executioner 37547 | -1/Command | Spotted Executioner 37552 | -1/Command | Spotted Executioner 37557 | -1/Command | Destroyed Striker 37559 | -1/Command | Spotted B-99 Colossus 37568 | -1/Command | Spotted B-99 Colossus 37578 | -1/Command | Released all parts (11) 37583 | -1/Command | Core integrity fell below 50% 37588 | -1/Command | Core integrity fell below 20% 37588 | *** | Escaped! Last Messages --------------- 37583_ Penetrated by Slug. 37583_ Slug penetrates Wall. 37584_ Penetrated by Slug. 37584_ Slug penetrates Wall. 37584_ Slug penetrates Earth. 37584_ Penetrated by Slug. 37585_ Executioner heat spikes uncontrollably. 37585_ Knocked back. 37585_ The Access Shell folds into the floor. 37585_ Triggered Stasis Trap. 37585_ A bubble of rippling energy engulfs the area. 37585_ Field strength at 94. 37585_ Penetrated by Slug. 37585_ Slug penetrates Wall. 37585_ Penetrated by Slug. 37585_ Slug penetrates Wall. 37585_ Field strength at 57. 37585_ Knocked back. 37585_ Penetrated by Slug. Map ----- +----------------------------------------------------+ | ### # """" ##?#???????????#????????? | | !!"% ""R"" #???#????###????????#???? | | !%/=["" "" #??????#???????#?#????? ? | | ####### ###/###% #????????????????##?#???? | | ??????# ## ## ! #?#???##??#??????????? ?? | | #?##??# ## ## #?????????#???##??##????? | | #??#### ## #######/####?#?????#?#???????????? ? | | ????## # #??#??# #???#???#???????##?#?#?#???? | | ??#??# T" # =#?????# ##??????????????#??????#??? | | ??#??# "" # #?????# #????#??#??????????????????? | | ?#??## #! !#????## #???????????????????????? ?? | | ????### ######?????# #??#??#????????#?????####### | | ??????# ##########?# #?????????#???#??????# | | ???##?# # #### ##???#?????????????#?# | | ??#??## # + "#????????#???#??????# | | ??#??## # #####"#???#????????##?????# | | ? ??? # #??#?# #??????????????????# | | ???? # #?????##????????#?#???????# | | ???#??# # #???????????????????????#?# | | ??????# # #?##############???????#?#######+ | | ####### # #?# ################ | | + #!% #?# #?# ## | | ?# [/% ] ] ]#?# ^ #?# ## | | ?# ###%[%= ] ### #?#"" *## | | ?? #?#%=[ !]]#?# #?#"" """" ""#" | | ?# #?# # ! #?# @" #?#"T """" " | | ?# ### # = #?# "" #?#"" """" / | | ?# ### ########### ^ ###"" """" " | | ?# ## ##???????# #?# """# | | ?# ## #?????#??# ^ %#?# ## | | ?# ## #??##????# % #?# = ## | | ?# ## ##???????# % #?# ## | | ?# ###%"###????##?##; ^ ##?# ## = | | ##+####+"####?????#?# #??# ## | | ! !*! [= #????#?## BB #??############## | | %[% #??????### % BB #???????????????# | | ! % "" ###????## / #?????#??????#??### | | """" #????#??# % % ##?#?#???#??#?????? | | """" #?##???### % #?????#??#?????#??? | | " =% "" #??#?##### ##??????#?????#???? | | " #?#??#### #??###????????????? | | "T ####??#### *##??##?????????????? | | "" + #?#???# # *!#?#???#???????#??##? | | "" ## ##??#?# #BB! ]]##??#???##??????#??# | | ## #?#######BB%%]!####?????#???#????#? | | ## ##??##??#!!|%![!!!#????#?#???#????? | | ###+"#######"# ##?????##%%%|%!/|!#?#??????#??????? | | !####"+########%!! =]]]] #?#???????#????#? | | ### #!=[ ![*= ##?????#??#?????? | | ###] #!%= #!## #?#??????#?#????# | +----------------------------------------------------+ Best States ------------- Heat Dissipation 109 Coolant Potential 100 Energy Generation 75 Energy Capacity 950 Matter Stores 300 Matter Capacity 300 Sight Range 16 Robot Scan Range 16 Terrain Scan Range 20 Terrain Scan Density 10 Jamming Range 16 Cloak Strength 5 EM Shielding 3 Corruption Block 20 Armor Coverage 1200 Point Defense Rating 160 Phase Shifting 15 Evasion (%) 55 Core Analysis 8 Recoil Reduction 6 Kinecelleration 50 Offensive Hacking 28 Defensive Hacking 16 Item Schematics ----------------- Lgt. Armor Plating | -9/Materials | Scanalyzed Hvy. Assault Rifle | -9/Materials | Scanalyzed Flak Cannon | -9/Materials | Scanalyzed Assault Cannon | -9/Materials | Scanalyzed Mni. Grenade Launcher | -9/Materials | Scanalyzed Combat Drone Bay | -6/Data Miner | Free Lgt. Regenerative Plating | -6/Data Miner | Free Enh. Armored Leg | -6/Data Miner | Free Imp. Matter Compressor | -6/Data Miner | Free Imp. KE Penetrator | -6/Data Miner | Free Imp. Heavy Treads | -6/Data Miner | Free Nanoactuators | -6/Data Miner | Free Hvy. Gauss Cannon | -6/Data Miner | Free Gyrokinetic Inverter | -6/Data Miner | Free Adv. Cryofiber Web | -6/Data Miner | Free Dispersion Rifle | -6/Data Miner | Free Impulse Thruster Array | -6/Data Miner | Free Centrium Wheel | -4/Factory | Scanalyzed Arm. Huge Wheel | -4/Factory | Scanalyzed Robot Schematics ------------------ R-10 Processor | -6/Data Miner | Free S-27 Virus | -6/Data Miner | Free G-50 Soldier | -6/Data Miner | Free B-60 Warrior | -6/Data Miner | Free M-30 Cleanser | -6/Data Miner | Free Fabricated ------------ Imp. Coolant Injector | x2 | -5/Factory | Preloaded Repaired ---------- Lgt. Armor Plating | 35% | -9/Materials Hvy. Ion Engine | 59% | -9/Materials Adv. Treads | 31% | -8/Materials Railgun | 54% | -6/Factory Arm. Huge Wheel | 45% | -6/Factory Arm. Huge Wheel | 26% | -5/Factory Centrium Wheel | 58% | -5/Factory Imp. Medium Armor Plating | 80% | -5/Factory Arm. Huge Wheel | 3% | -4/Factory Studied --------- Wheel | -8/Materials | Hacked Arm. Wheel | -8/Materials | Hacked Mni. Grenade Launcher | -8/Materials | Hacked Missile Launcher | -8/Materials | Hacked Hvy. Assault Cannon | -6/Factory | Hacked Arm. Huge Wheel | -6/Factory | Hacked Centrium Wheel | -4/Factory | Hacked Alien Tech Used ----------------- None Achievements -------------- None Challenges ------------ None Game ------ Seed MyomerCoordinationSegregator Manual? 0 Play Time 05:09:26 Cumulative 418.8 hours Start 2026.02.20 @ 14:30:48 End 2026.02.22 @ 18:00:19 Sessions 5 Manual Loads 0 Difficulty Rogue Special Mode None Game No. 330 Rogue 330 Adventurer 0 Explorer 0 Win Type 0 Total 4 Types 3/0/0/0/0/0/0/1/0/0 Lore% 66 Gallery% 70 Achievement% 56 Wizard Run 0 Options --------- Layout 1 ASCII 0 Keyboard 0 Movement Mouse Keybinds 0 Fullscreen 1 Font 32/SmallcapsGlow Map View 50x35 Zoom Use 0% Tactical HUD 1 Map Filters NONE Filters NONE Steam 1 RUN: d17ee4ea-f14e-4cd6-be2c-18261f9c18bd